Workbook

Sheet 字典表
A1: 编号 | B1: 字典类型 | C1: 字典名称 | D1: 字典编码 | E1: 名称 | F1: 字典值类型 | G1: 备注
A2: 1 | B2: yes_no | C2: 是否 | D2: 0 | E2: 否 | F2: 1 | G2: 字典值类型：1、无父级或者子级；0、有父级或者子级
D3: 1 | E3: 是 | F3: 1
A4: 2 | B4: project | C4: 项目 | D4: project | E4: 项目 | F4: 1
A5: 3 | B5: alarm_level | C5: 报警级别 | D5: S | E5: S | F5: 1
D6: A | E6: A | F6: 1
D7: B | E7: B | F7: 1
D8: C | E8: C | F8: 1
D9: D | E9: D | F9: 1
A10: 4 | B10: status | C10: 使用状态 | D10: 0 | E10: 停用 | F10: 1
D11: 1 | E11: 正常 | F11: 1
A12: 5 | B12: data_type | C12: 仪表数据类型 | D12: Acc | E12: 累积变量 | F12: 1 | G12: 数值沿时间轴累计，单调非减的连续性数值时变量
D13: Inst | E13: 瞬时变量 | F13: 1 | G13: 数值沿时间轴连续变化的时变量，在物理意义上常表现为累积量的一阶导数
D14: EnumV | E14: 状态变量 | F14: 1 | G14: 延连续时间轴只有给定整数数值状态的时变量
D15: Boolv | E15: 通断变量 | F15: 1 | G15: 延连续时间轴只有0/1两种数值状态的时变量
A16: 6 | B16: repair_data_type | C16: 分精度数据修复类型 | D16: 0 | E16: 原始数 | F16: 1
D17: 1 | E17: 人工智能算法修复 | F17: 1
D18: 2 | E18: 人工修复 | F18: 1
D19: 3 | E19: 专家修复 | F19: 1
A20: 7 | B20: collect_cycle | C20: 分精度计算的最小时间粒度 | D20: 0 | E20: 1min | F20: 1
D21: 1 | E21: 5min | F21: 1
D22: 2 | E22: 15min | F22: 1
D23: 3 | E23: 1h | F23: 1
D24: 4 | E24: 1d | F24: 1
A25: 8 | B25: gender | C25: 性别 | D25: 0 | E25: 女 | F25: 1
D26: 1 | E26: 男 | F26: 1
A27: 9 | B27: alarm_staus | C27: 报警状态 | D27: 0 | E27: 未恢复 | F27: 1
D28: 1 | E28: 已恢复 | F28: 1
D29: 2 | E29: 已过期 | F29: 1
A30: 10 | B30: is_virtua | C30: 是否为虚点 | D30: 0 | E30: 否 | F30: 1
D31: 1 | E31: 是 | F31: 1
A32: 11 | B32: result | C32: 结果 | D32: 0 | E32: 失败 | F32: 1
D33: 1 | E33: 成功 | F33: 1
A34: 12 | B34: relative_time | C34: 相对时间 | D34: 0 | E34: 日出 | F34: 1
D35: 1 | E35: 日落 | F35: 1
D36: 2 | E36: 开店时间 | F36: 1
D37: 3 | E37: 商业闭店 | F37: 1
D38: 4 | E38: 娱乐闭店 | F38: 1

Sheet 报警业务
A1: 表 | B1: 信息点 | C1: 信息点编码 | D1: 单位 | E1: 类型 | F1: 优先级 | G1: 输入方式 | H1: 字典 | I1: 分级标签 | K1: 备注
A2: 报警分类表（子系统） | B2: 主键 | C2: id | E2: varchar(20) | H2: 主键
B3: 报警分类id | C3: alarm_system_code | E3: varchar(20) | H3: 报警分类id
B4: 报警分类名称 | C4: alarm_system_name | E4: varchar(20) | H4: 报警分类名称
A6: 报警条目表（类型） | B6: 主键 | C6: id | E6: varchar(20) | H6: 主键
B7: 报警条目编码 | C7: alarm_code | E7: varchar(20) | H7: 报警条目编码
B8: 报警条目编码别名 | C8: alarm_code_alias | E8: varchar(20) | H8: 报警条目编码别名
B9: 报警条目名称 | C9: alarm_code_name | E9: varchar(20) | H9: 报警条目名称
B10: 报警条目名称别名 | C10: alarm_code_name_alias | E10: varchar(20) | H10: 报警条目名称别名
B11: 对象类型id | C11: class_code | E11: varchar(20) | H11: 对象类型id
B12: 报警分类id | C12: alarm_system_code | E12: varchar(20) | H12: 报警分类id
B13: 报警级别 | C13: alarm_level | E13: varchar(20) | H13: 报警级别 | K13: 默认报警级别
A15: 对象报警条目表 | B15: 主键 | C15: id | E15: varchar(20) | H15: 主键
B16: 对象id | C16: obj_id | E16: varchar(20) | H16: 对象id
B17: 报警条目id | C17: alarm_code | E17: varchar(20) | H17: 报警条目编码
A20: 报警主体表 | B20: 主键 | C20: id | E20: varchar(20) | H20: 报警id
B21: 报警条目编码 | C21: alarm_code | E21: varchar(20) | H21: 报警条目编码
B22: 报警名称 | C22: alarm_name | E22: varchar(20) | H22: 报警名称
B23: 报警描述 | C23: alarm_description | E23: varchar(30) | H23: 报警描述
B24: 报警时间 | C24: alarm_time | E24: varchar(20) | H24: 报警时间
B25: 报警对象id | C25: obj_ids | E25: Str_Arr | H25: 报警对象id
B26: 报警级别 | C26: alarm_level | E26: varchar(20) | H26: 报警级别
B27: 报警状态 | C27: alarm_state | E27: varchar(20) | H27: 报警状态：未恢复、已恢复、已过期
B28: 报警处理状态 | C28: alarm_process_state | E28: varchar(20) | H28: 报警处理状态:未处理、处理中、已处理、已忽略
B29: 报警恢复时间 | C29: alarm_resume_time | E29: varchar(20) | H29: 报警恢复时间

Sheet 业务-功能权限-类
A1: 字典ID | B1: 字典名称 | C1: 字典代码 | D1: 名称 | E1: 字典类型 | F1: 父类字典名称 | G1: 父类字典代码 | H1: 父类名称 | I1: 备注
B2: 产品分类表 | C2: c01 | D2: BI数据决策系统 | E2: 0 | I2: 字典类类型： 1、无父级或者子级；0、有父级或者子级
C3: c02 | D3: 能源管理系统 | E3: 0
C4: c03 | D4: 安全风险管理系统 | E4: 0
C5: c04 | D5: 环境健康管理系统 | E5: 0
C6: c05 | D6: 统一收费管理系统 | E6: 0
C7: c06 | D7: 设备设施系统 | E7: 0
C8: c07 | D8: 协同办公系统 | E8: 0
C9: c08 | D9: APP | E9: 0
B11: 产品表 | C11: g01 | D11: 数据分析与报表 | E11: 0 | F11: 产品分类表 | G11: c01 | H11: BI数据决策系统
C12: g02 | D12: 预算与运行管理 | E12: 0 | F12: 产品分类表 | G12: c02 | H12: 能源管理系统
C13: g03 | D13: 安全风险管理中心板 | E13: 0 | F13: 产品分类表 | G13: c03 | H13: 安全风险管理系统
C14: g04 | D14: 安全风险管理项目版 | E14: 0 | F14: 产品分类表 | G14: c03 | H14: 安全风险管理系统
C15: g05 | D15: 环境健康管理项目版 | E15: 0 | F15: 产品分类表 | G15: c04 | H15: 环境健康管理系统
C16: g06 | D16: 收费管理项目版 | E16: 0 | F16: 产品分类表 | G16: c05 | H16: 统一收费管理系统
C17: g07 | D17: 工作流监控及管理 | E17: 0 | F17: 产品分类表 | G17: c06 | H17: 设备设施系统
C18: g08 | D18: OA及信息管理 | E18: 0 | F18: 产品分类表 | G18: c07 | H18: 协同办公系统
C19: g09 | D19: 首页 | E19: 0 | F19: 产品分类表 | G19: c08 | H19: APP
C20: g10 | D20: 待办 | E20: 0 | F20: 产品分类表 | G20: c08 | H20: APP
C21: g11 | D21: 新建 | E21: 0 | F21: 产品分类表 | G21: c08 | H21: APP
C22: g12 | D22: 应用 | E22: 0 | F22: 产品分类表 | G22: c08 | H22: APP
C23: g13 | D23: 我 | E23: 0 | F23: 产品分类表 | G23: c08 | H23: APP

Sheet 业务-功能权限-功能点
A1: 字典ID | B1: 字典名称 | C1: 字典代码 | D1: 名称 | E1: 字典类型 | F1: 父级字典名称 | G1: 父类字典代码 | H1: 父类名称 | I1: 备注
B2: 功能点表 | D2: 集团首页 | E2: 0 | F2: 产品表 | G2: g01 | H2: 数据分析与报表
D3: 集团报表 | E3: 0 | F3: 功能分类表 | G3: g01 | H3: 数据分析与报表
D4: BI数据分析 | E4: 0 | F4: 功能分类表 | G4: g01 | H4: 数据分析与报表
D5: 中心版数据质量报表 | E5: 0 | F5: 功能分类表 | G5: g01 | H5: 数据分析与报表
D6: 中心版能耗报表 | E6: 0 | F6: 功能分类表 | G6: g01 | H6: 数据分析与报表
D7: 项目报表 | E7: 0 | F7: 功能分类表 | G7: g01 | H7: 数据分析与报表
D8: 项目数据质量报表 | E8: 0 | F8: 功能分类表 | G8: g01 | H8: 数据分析与报表
D9: 项目首页 | E9: 0 | F9: 功能分类表 | G9: g01 | H9: 数据分析与报表
D10: 我的首页 | E10: 0 | F10: 功能分类表 | G10: g01 | H10: 数据分析与报表
F11: 功能分类表
D12: 项目预算管理 | E12: 0 | F12: 功能分类表 | G12: g02 | H12: 预算与运行管理
D13: 项目运行管理 | E13: 0 | F13: 功能分类表 | G13: g02 | H13: 预算与运行管理
D14: 中心版预算管理 | E14: 0 | F14: 功能分类表 | G14: g02 | H14: 预算与运行管理
D15: 中心版运行管理 | E15: 0 | F15: 功能分类表 | G15: g02 | H15: 预算与运行管理
F16: 功能分类表
D17: 数据总览 | E17: 0 | F17: 功能分类表 | G17: g03 | H17: 安全风险管理中心板
F18: 功能分类表
D19: 项目总览 | E19: 0 | F19: 功能分类表 | G19: g04 | H19: 安全风险管理项目版
D20: 报警管理 | E20: 0 | F20: 功能分类表 | G20: g04 | H20: 安全风险管理项目版
D21: 环境总览 | E21: 0 | F21: 功能分类表 | G21: g05 | H21: 环境健康管理项目版
D22: 报警管理 | E22: 0 | F22: 功能分类表 | G22: g05 | H22: 环境健康管理项目版
D23: 后评估管理 | E23: 0 | F23: 功能分类表 | G23: g05 | H23: 环境健康管理项目版
D24: 租户管理 | E24: 0 | F24: 功能分类表 | G24: g06 | H24: 收费管理项目版
D25: 充值缴费 | E25: 0 | F25: 功能分类表 | G25: g06 | H25: 收费管理项目版
D26: 后台配置 | E26: 0 | F26: 功能分类表 | G26: g06 | H26: 收费管理项目版
F27: 功能分类表
D28: 集团工单管理 | E28: 0 | F28: 功能分类表 | G28: g07 | H28: 工作流监控及管理
D29: 集团计划 | E29: 0 | F29: 功能分类表 | G29: g07 | H29: 工作流监控及管理
D30: 集团事件 | E30: 0 | F30: 功能分类表 | G30: g07 | H30: 工作流监控及管理
D31: 集团维修管理 | E31: 0 | F31: 功能分类表 | G31: g07 | H31: 工作流监控及管理
D32: 集团SOP | E32: 0 | F32: 功能分类表 | G32: g07 | H32: 工作流监控及管理
D33: 集团任务 | E33: 0 | F33: 功能分类表 | G33: g07 | H33: 工作流监控及管理
D34: 集团承接查验 | E34: 0 | F34: 功能分类表 | G34: g07 | H34: 工作流监控及管理
D35: 项目工单管理 | E35: 0 | F35: 功能分类表 | G35: g07 | H35: 工作流监控及管理
D36: 计划管理 | E36: 0 | F36: 功能分类表 | G36: g07 | H36: 工作流监控及管理
D37: 事件管理 | E37: 0 | F37: 功能分类表 | G37: g07 | H37: 工作流监控及管理
D38: 项目维修管理 | E38: 0 | F38: 功能分类表 | G38: g07 | H38: 工作流监控及管理
D39: SOP管理 | E39: 0 | F39: 功能分类表 | G39: g07 | H39: 工作流监控及管理
D40: 任务管理 | E40: 0 | F40: 功能分类表 | G40: g07 | H40: 工作流监控及管理
D41: 项目承接查验 | E41: 0 | F41: 功能分类表 | G41: g07 | H41: 工作流监控及管理
D42: 重点机房监控 | E42: 0 | F42: 功能分类表 | G42: g07 | H42: 工作流监控及管理
F43: 功能分类表
D44: 排班管理 | E44: 0 | F44: 功能分类表 | G44: g08 | H44: OA及信息管理
D45: 权限包管理 | E45: 0 | F45: 功能分类表 | G45: g08 | H45: OA及信息管理
D46: 账号管理 | E46: 0 | F46: 功能分类表 | G46: g08 | H46: OA及信息管理
D47: 组织结构模版 | E47: 0 | F47: 功能分类表 | G47: g08 | H47: OA及信息管理
D48: 人员组织结构管理 | E48: 0 | F48: 功能分类表 | G48: g08 | H48: OA及信息管理
D49: 我的工作台 | E49: 0 | F49: 功能分类表 | G49: g08 | H49: OA及信息管理
D50: 工作历管理 | E50: 0 | F50: 功能分类表 | G50: g08 | H50: OA及信息管理
D51: 集团文件 | E51: 0 | F51: 功能分类表 | G51: g08 | H51: OA及信息管理
D52: 集团公告 | E52: 0 | F52: 功能分类表 | G52: g08 | H52: OA及信息管理
D53: 项目公告 | E53: 0 | F53: 功能分类表 | G53: g08 | H53: OA及信息管理
D54: FM配置 | E54: 0 | F54: 功能分类表 | G54: g08 | H54: OA及信息管理
D55: 集团供应商 | E55: 0 | F55: 功能分类表 | G55: g08 | H55: OA及信息管理
D56: 供应商管理 | E56: 0 | F56: 功能分类表 | G56: g08 | H56: OA及信息管理
D57: 合同管理 | E57: 0 | F57: 功能分类表 | G57: g08 | H57: OA及信息管理
D58: 仓库管理 | E58: 0 | F58: 功能分类表 | G58: g08 | H58: OA及信息管理
D59: 耗材模版 | E59: 0 | F59: 功能分类表 | G59: g08 | H59: OA及信息管理
D60: 耗材出入库管理 | E60: 0 | F60: 功能分类表 | G60: g08 | H60: OA及信息管理
D61: 公共工具管理 | E61: 0 | F61: 功能分类表 | G61: g08 | H61: OA及信息管理
D62: 个人工具管理 | E62: 0 | F62: 功能分类表 | G62: g08 | H62: OA及信息管理
D63: 设备空间 | E63: 0 | F63: 功能分类表 | G63: g08 | H63: OA及信息管理
F64: 功能分类表
D65: 首页 | E65: 0 | F65: 功能分类表 | G65: g09 | H65: 首页
F66: 功能分类表
D67: 工单 | E67: 0 | F67: 功能分类表 | G67: g10 | H67: 待办
D68: 任务 | E68: 0 | F68: 功能分类表 | G68: g10 | H68: 待办
D69: 事件 | E69: 0 | F69: 功能分类表 | G69: g10 | H69: 待办
D70: 库存管理 | E70: 0 | F70: 功能分类表 | G70: g10 | H70: 待办
F71: 功能分类表
D72: 新建工单 | E72: 0 | F72: 功能分类表 | G72: g11 | H72: 新建
D73: 新建事件 | E73: 0 | F73: 功能分类表 | G73: g11 | H73: 新建
D74: 新建任务 | E74: 0 | F74: 功能分类表 | G74: g11 | H74: 新建
D75: 承接查验 | E75: 0 | F75: 功能分类表 | G75: g11 | H75: 新建
D76: 扫一扫 | E76: 0 | F76: 功能分类表 | G76: g11 | H76: 新建
D77: 耗材申请 | E77: 0 | F77: 功能分类表 | G77: g11 | H77: 新建
D78: 借用工具 | E78: 0 | F78: 功能分类表 | G78: g11 | H78: 新建
D79: 巡场定位 | E79: 0 | F79: 功能分类表 | G79: g11 | H79: 新建
D80: 隐患填报 | E80: 0 | F80: 功能分类表 | G80: g11 | H80: 新建
D81: 事故填报 | E81: 0 | F81: 功能分类表 | G81: g11 | H81: 新建
D82: 报修 | E82: 0 | F82: 功能分类表 | G82: g11 | H82: 新建
F83: 功能分类表
D84: 工单管理 | E84: 0 | F84: 功能分类表 | G84: g12 | H84: 应用
D85: 任务管理 | E85: 0 | F85: 功能分类表 | G85: g12 | H85: 应用
D86: 资产管理 | E86: 0 | F86: 功能分类表 | G86: g12 | H86: 应用
D87: 文件管理 | E87: 0 | F87: 功能分类表 | G87: g12 | H87: 应用
D88: 排班表 | E88: 0 | F88: 功能分类表 | G88: g12 | H88: 应用
D89: 事件管理 | E89: 0 | F89: 功能分类表 | G89: g12 | H89: 应用
D90: 承接查验管理 | E90: 0 | F90: 功能分类表 | G90: g12 | H90: 应用
D91: 应急响应 | E91: 0 | F91: 功能分类表 | G91: g12 | H91: 应用
D92: 耗材管理 | E92: 0 | F92: 功能分类表 | G92: g12 | H92: 应用
D93: 工具管理 | E93: 0 | F93: 功能分类表 | G93: g12 | H93: 应用
F94: 功能分类表
D95: 公众号 | E95: 0 | F95: 功能分类表 | G95: g13 | H95: 我
D96: 通讯录 | E96: 0 | F96: 功能分类表 | G96: g13 | H96: 我
D97: 我的应急预案 | E97: 0 | F97: 功能分类表 | G97: g13 | H97: 我
D98: 我的公告 | E98: 0 | F98: 功能分类表 | G98: g13 | H98: 我
D99: 我的等级和金币 | E99: 0 | F99: 功能分类表 | G99: g13 | H99: 我
D100: 我的成就 | E100: 0 | F100: 功能分类表 | G100: g13 | H100: 我
D101: 我的库存管理 | E101: 0 | F101: 功能分类表 | G101: g13 | H101: 我
D102: 我的审批 | E102: 0 | F102: 功能分类表 | G102: g13 | H102: 我
D103: 我的任务 | E103: 0 | F103: 功能分类表 | G103: g13 | H103: 我
B107: 子功能点表 | D107: 系统管理 | E107: 0 | F107: 功能点表 | H107: BI数据分析
D108: 能耗统计与分析单项目版 | E108: 0 | F108: 功能点表 | H108: BI数据分析
D109: 能耗统计与分析多项目版 | E109: 0 | F109: 功能点表 | H109: BI数据分析
D110: 分项编码切换管理 | E110: 0 | F110: 功能点表 | H110: BI数据分析
D111: 设备设施工单查询 | E111: 0 | F111: 功能点表 | H111: BI数据分析
D113: 设备配置 | E113: 0 | F113: 功能点表 | H113: 项目运行管理
D114: 运行计划 | E114: 0 | F114: 功能点表 | H114: 项目运行管理
D115: 运行诊断 | E115: 0 | F115: 功能点表 | H115: 项目运行管理
D117: 重大风险条 | E117: 0 | F117: 功能点表 | H117: 数据总览
D118: 项目排名 | E118: 0 | F118: 功能点表 | H118: 数据总览
E119: 0
D120: 置顶条（实时报警） | E120: 0 | F120: 功能点表 | H120: 项目总览
D121: 天气预警模块 | E121: 0 | F121: 功能点表 | H121: 项目总览
D122: 历史报警（单建筑）模块 | E122: 0 | F122: 功能点表 | H122: 项目总览
D123: 设备报警列表模块 | E123: 0 | F123: 功能点表 | H123: 项目总览
D124: 设备定位按钮 | E124: 0 | F124: 功能点表 | H124: 项目总览
D125: 设备历史报警统计按钮 | E125: 0 | F125: 功能点表 | H125: 项目总览
D126: 设备报警配置按钮 | E126: 0 | F126: 功能点表 | H126: 项目总览
D127: 设备工单查询按钮 | E127: 0 | F127: 功能点表 | H127: 项目总览
D128: 设备事件查询按钮 | E128: 0 | F128: 功能点表 | H128: 项目总览
D129: 设备视频模块 | E129: 0 | F129: 功能点表 | H129: 项目总览
D130: 空间报警列表模块 | E130: 0 | F130: 功能点表 | H130: 项目总览
D131: 空间定位按钮 | E131: 0 | F131: 功能点表 | H131: 项目总览
D132: 空间历史报警统计按钮 | E132: 0 | F132: 功能点表 | H132: 项目总览
D133: 空间报警配置按钮 | E133: 0 | F133: 功能点表 | H133: 项目总览
D134: 空间工单查询按钮 | E134: 0 | F134: 功能点表 | H134: 项目总览
D135: 空间事件查询按钮 | E135: 0 | F135: 功能点表 | H135: 项目总览
D136: 空间视频模块 | E136: 0 | F136: 功能点表 | H136: 项目总览
D138: 置顶条（实时报警） | E138: 0 | F138: 功能点表 | H138: 报警管理
D139: 下载按钮 | E139: 0 | F139: 功能点表 | H139: 报警管理
D140: 忽略模块 | E140: 0 | F140: 功能点表 | H140: 报警管理
D141: 转工单模块 | E141: 0 | F141: 功能点表 | H141: 报警管理
D142: 撤销模块 | E142: 0 | F142: 功能点表 | H142: 报警管理
D144: 空间数据下载 | E144: 0 | F144: 功能点表 | H144: 环境总览
D146: 报警记录下载 | E146: 0 | F146: 功能点表 | H146: 报警管理
D147: 通讯中断报警 | E147: 0 | F147: 功能点表 | H147: 报警管理
D148: 报警方案查看 | E148: 0 | F148: 功能点表 | H148: 报警管理
D149: 报警方案设置 | E149: 0 | F149: 功能点表 | H149: 报警管理
D150: 报警处理 | E150: 0 | F150: 功能点表 | H150: 报警管理
D151: 报警原因分析 | E151: 0 | F151: 功能点表 | H151: 报警管理
D153: 评价执行人 | E153: 0 | F153: 功能点表 | H153: 集团工单管理
D154: 指派 | E154: 0 | F154: 功能点表 | H154: 集团工单管理
D155: 中止 | E155: 0 | F155: 功能点表 | H155: 集团工单管理
D156: 撤销 | E156: 0 | F156: 功能点表 | H156: 集团工单管理
D157: 转交 | E157: 0 | F157: 功能点表 | H157: 集团工单管理
D158: 新建工单 | E158: 0 | F158: 功能点表 | H158: 集团工单管理
D160: 编辑计划 | E160: 0 | F160: 功能点表 | H160: 集团计划
D161: 删除计划 | E161: 0 | F161: 功能点表 | H161: 集团计划
D162: 还原计划 | E162: 0 | F162: 功能点表 | H162: 集团计划
D163: 新建计划 | E163: 0 | F163: 功能点表 | H163: 集团计划
D164: 下发计划 | E164: 0 | F164: 功能点表 | H164: 集团计划
D165: 复制计划 | E165: 0 | F165: 功能点表 | H165: 集团计划
D166: 暂停计划 | E166: 0 | F166: 功能点表 | H166: 集团计划
D167: 恢复计划 | E167: 0 | F167: 功能点表 | H167: 集团计划
D168: 查看项目计划 | E168: 0 | F168: 功能点表 | H168: 集团计划
D169: 新建工单 | E169: 0 | F169: 功能点表 | H169: 集团计划
D170: 新建任务 | E170: 0 | F170: 功能点表 | H170: 集团计划
D172: 项目预览 | E172: 0 | F172: 功能点表 | H172: 集团事件
D173: 事件管理 | E173: 0 | F173: 功能点表 | H173: 集团事件
D174: 新建事件 | E174: 0 | F174: 功能点表 | H174: 集团事件
D175: 指派事件 | E175: 0 | F175: 功能点表 | H175: 集团事件
D176: 关闭事件 | E176: 0 | F176: 功能点表 | H176: 集团事件
D177: 删除事件 | E177: 0 | F177: 功能点表 | H177: 集团事件
D178: 事件转工单 | E178: 0 | F178: 功能点表 | H178: 集团事件
D179: 事件转任务 | E179: 0 | F179: 功能点表 | H179: 集团事件
D180: 事件修正 | E180: 0 | F180: 功能点表 | H180: 集团事件
D181: 事件确认 | E181: 0 | F181: 功能点表 | H181: 集团事件
D183: 创建SOP | E183: 0 | F183: 功能点表 | H183: 集团SOP
D184: 编辑SOP | E184: 0 | F184: 功能点表 | H184: 集团SOP
D185: 修订SOP | E185: 0 | F185: 功能点表 | H185: 集团SOP
D186: 发布SOP | E186: 0 | F186: 功能点表 | H186: 集团SOP
D187: 作废SOP | E187: 0 | F187: 功能点表 | H187: 集团SOP
D189: 新建任务 | E189: 0 | F189: 功能点表 | H189: 集团任务
D190: 新建任务节点 | E190: 0 | F190: 功能点表 | H190: 集团任务
D191: 编辑任务 | E191: 0 | F191: 功能点表 | H191: 集团任务
D192: 编辑任务节点 | E192: 0 | F192: 功能点表 | H192: 集团任务
D193: 中止任务 | E193: 0 | F193: 功能点表 | H193: 集团任务
D194: 删除任务 | E194: 0 | F194: 功能点表 | H194: 集团任务
D195: 中止节点 | E195: 0 | F195: 功能点表 | H195: 集团任务
D196: 删除节点 | E196: 0 | F196: 功能点表 | H196: 集团任务
D197: 编辑节点 | E197: 0 | F197: 功能点表 | H197: 集团任务
D198: 模板管理 | E198: 0 | F198: 功能点表 | H198: 集团任务
D199: 模板任务编辑 | E199: 0 | F199: 功能点表 | H199: 集团任务
D200: 转交 | E200: 0 | F200: 功能点表 | H200: 集团任务
D202: 项目预览 | E202: 0 | F202: 功能点表 | H202: 集团承接查验
D203: 承接查验管理 | E203: 0 | F203: 功能点表 | H203: 集团承接查验
D204: 新建承接查验 | E204: 0 | F204: 功能点表 | H204: 集团承接查验
D205: 指派承接查验 | E205: 0 | F205: 功能点表 | H205: 集团承接查验
D206: 关闭承接查验 | E206: 0 | F206: 功能点表 | H206: 集团承接查验
D207: 删除承接查验 | E207: 0 | F207: 功能点表 | H207: 集团承接查验
D208: 承接查验转工单 | E208: 0 | F208: 功能点表 | H208: 集团承接查验
D209: 承接查验转任务 | E209: 0 | F209: 功能点表 | H209: 集团承接查验
D210: 承接查验修正 | E210: 0 | F210: 功能点表 | H210: 集团承接查验
D211: 承接查验确认 | E211: 0 | F211: 功能点表 | H211: 集团承接查验
D212: 编辑问题原因备注 | E212: 0 | F212: 功能点表 | H212: 集团承接查验
D214: 评价执行人 | E214: 0 | F214: 功能点表 | H214: 项目工单管理
D215: 中止 | E215: 0 | F215: 功能点表 | H215: 项目工单管理
... 240 more rows

Sheet 人员

Sheet 示例字典表
A1: 字典ID | B1: 字典名称 | C1: 字典代码 | D1: 名称 | E1: 字典类型 | F1: 父类字典名称 | G1: 父类字典代码 | H1: 父类名称 | I1: 备注
B2: 是否 | C2: 0 | D2: 否 | E2: 1 | I2: 字典类类型： 1、无父级或者子级；0、有父级或者子级
C3: 1 | D3: 是 | E3: 1
B4: 项目 | C4: project | D4: 项目 | E4: 1
B6: 墙位置 | C6: 1 | D6: 内墙 | E6: 1
C7: 2 | D7: 外墙 | E7: 1
C8: 3 | D8: 其它 | E8: 1
B9: 设备（部件）类名称 | C9: FDAA | D9: 基础抗浮锚杆 | E9: 0 | F9: 设备（部件）族名称 | G9: AAA | H9: 抗浮锚杆
C10: CCAC | D10: 吸收式冷水机组 | E10: 0 | G10: ACA | H10: 吸收式冷水机组
C11: VTAC | D11: 热风幕 | E11: 0 | G11: ACB | H11: 热风幕
C12: FSAC | D12: 消防空压机 | E12: 0 | G12: ACC | H12: 空压机
C13: LNAC | D13: 无线控制器 | E13: 0 | G13: ACD | H13: 无线控制器
C14: CCAH | D14: 空调空气源热泵 | E14: 0 | G14: AHA | H14: 空气源热泵
C15: DHAH | D15: 生活热水空气源热泵 | E15: 0 | G15: AHA | H15: 空气源热泵
C16: ATAH | D16: 空调机组 | E16: 0 | G16: AHB | H16: 空调机组
C17: FAAL | D17: 火灾报警声光报警器 | E17: 0 | G17: ALA | H17: 声光报警器
C18: IAAL | D18: 入侵报警声光报警器 | E18: 0 | G18: ALA | H18: 声光报警器
C19: AEAL | D19: 声光报警器 | E19: 0 | G19: ALA | H19: 声光报警器
C20: VTAP | D20: 空气净化器 | E20: 0 | G20: APA | H20: 空气净化器
C21: KLAP | D21: 油烟净化器 | E21: 0 | G21: APB | H21: 油烟净化器
C22: LNAP | D22: 无线AP点位 | E22: 0 | G22: APC | H22: 无线AP点位
C23: SWAR | D23: 楼梯扶手 | E23: 0 | G23: ARA | H23: 扶手
C24: MAAT | D24: 信号放大天线 | E24: 0 | G24: ATA | H24: 信号放大天线
C25: LPAT | D25: 接闪器 | E25: 0 | G25: ATB | H25: 接闪器
C26: AEAV | D26: 调节阀 | E26: 0 | G26: AVA | H26: 调节阀
C27: VTBC | D27: 呼吸式幕墙 | E27: 0 | G27: BCA | H27: 呼吸式幕墙
C28: WLBD | D28: 墙体 | E28: 0 | G28: BDA | H28: 主体
C29: SWBD | D29: 楼梯主体 | E29: 0 | G29: BDA | H29: 主体
C30: CHBF | D30: 生物质炊暖炉 | E30: 0 | G30: BFA | H30: 生物质炊暖炉
C31: GEBG | D31: 气体灭火瓶组 | E31: 0 | G31: BGA | H31: 气体灭火瓶组
C32: TDBP | D32: 变配电母线插接箱 | E32: 0 | G32: BPA | H32: 母线插接箱
C33: TPBP | D33: 租户母线插接箱 | E33: 0 | G33: BPA | H33: 母线插接箱
C34: BPBP | D34: 备用电源 | E34: 0
C35: CCGHBP | D35: 地埋管 | E35: 0
C36: IDBT | D36: 浴缸 | E36: 0
C37: ATCA | D37: 定风量箱 | E37: 0
C38: CHCB | D38: 供热燃煤锅炉 | E38: 0 | G38: CBA | H38: 燃煤锅炉
C39: DHCB | D39: 生活热水燃煤锅炉 | E39: 0 | G39: CBA | H39: 燃煤锅炉
C40: SECB | D40: 组合式传感器 | E40: 0
C41: CCCC | D41: 离心式冷水机组 | E41: 0
C42: CCCD | D42: 供冷水加药装置 | E42: 0
C43: CHCD | D43: 供热水加药装置 | E43: 0
C44: CCCF | D44: 供冷定压补水装置（定压水箱） | E44: 0 | G44: CFA | H44: 定压补水装置
C45: CHCF | D45: 供热定压补水装置（定压水箱） | E45: 0 | G45: CFA | H45: 定压补水装置
C46: DHCF | D46: 生活热水定压补水装置（定压水箱） | E46: 0 | G46: CFA | H46: 定压补水装置
C47: FSCF | D47: 消防给水定压补水装置（定压水箱） | E47: 0 | G47: CFA | H47: 定压补水装置
C48: WSCF | D48: 水景循环过滤机组 | E48: 0
C49: WPCF | D49: 泳池循环过滤机组 | E49: 0
C50: IDCL | D50: 吊顶 | E50: 0
C51: GMCM | D51: 车库摄像头 | E51: 0 | G51: CMA | H51: 摄像头
C52: VSCM | D52: 监控摄像头 | E52: 0 | G52: CMA | H52: 摄像头
C53: OFCM | D53: 办公摄像头 | E53: 0 | G53: CMA | H53: 摄像头
C54: GMCP | D54: 充电桩 | E54: 0
C55: LTCP | D55: 照明控制面板 | E55: 0 | G55: CPB | H55: 控制面板
C56: BACP | D56: 楼控控制面板 | E56: 0 | G56: CPB | H56: 控制面板
C57: VTCP | D57: 通风控制面板 | E57: 0 | G57: CPB | H57: 控制面板
C58: FSCP | D58: 消火栓控制面板 | E58: 0 | G58: CPB | H58: 控制面板
C59: FRCP | D59: 防火卷帘门控制面板 | E59: 0 | G59: CPB | H59: 控制面板
C60: EGCP | D60: 门禁控制面板 | E60: 0 | G60: CPB | H60: 控制面板
C61: IACP | D61: 入侵报警控制面板 | E61: 0 | G61: CPB | H61: 控制面板
C62: OFCP | D62: 办公控制面板 | E62: 0 | G62: CPB | H62: 控制面板
C63: VSCP | D63: 监控控制面板 | E63: 0 | G63: CPB | H63: 控制面板
C64: STCP | D64: 集水坑 | E64: 0 | G64: CPC | H64: 集水坑
C65: FDCP | D65: 基础集水坑 | E65: 0 | G65: CPC | H65: 集水坑
C66: NPCP | D66: 巡更通讯座 | E66: 0
C67: CWCP | D67: 幕墙组件 | E67: 0
C68: LRCP | D68: 采光顶组件 | E68: 0
C69: EGCR | D69: 门禁读卡器 | E69: 0
C70: FDCS | D70: 基础垫层 | E70: 0
C71: SECT | D71: 浓度传感器 | E71: 0
C72: WLCT | D72: 墙涂层 | E72: 0
C73: SSCT | D73: 外遮阳帘 | E73: 0
C74: DGCU | D74: 柴发控制箱 | E74: 0
C75: BPCU | D75: 备用电源控制箱 | E75: 0
C76: EPCU | D76: 机房动力控制箱 | E76: 0
C77: OPCU | D77: 室外动力控制箱 | E77: 0
C78: ELCU | D78: 电梯控制箱 | E78: 0
C79: LTCU | D79: 照明控制箱 | E79: 0
C80: TPCU | D80: 租户配电控制箱 | E80: 0
C81: SDCU | D81: 强电人防控制箱 | E81: 0
C82: BACU | D82: 楼控控制箱 | E82: 0
C83: TVCU | D83: 电视信号控制箱 | E83: 0
C84: MICU | D84: 多媒体控制箱 | E84: 0
C85: WTCU | D85: 无线对讲控制箱 | E85: 0
C86: GMCU | D86: 车库控制箱 | E86: 0
C87: SICU | D87: 喷灌控制箱 | E87: 0
C88: WSCU | D88: 水景控制箱 | E88: 0
C89: WHCU | D89: 给排水伴热控制箱 | E89: 0
C90: FACU | D90: 火灾报警控制箱 | E90: 0
C91: GACU | D91: 燃气报警控制箱 | E91: 0
C92: EACU | D92: 漏电火灾报警控制箱 | E92: 0
C93: BMCU | D93: 广播分区控制箱 | E93: 0
C94: FSCU | D94: 消防给水控制箱 | E94: 0
C95: GECU | D95: 气体灭火控制箱 | E95: 0
C96: FRCU | D96: 防火卷帘门控制箱 | E96: 0
C97: EECU | D97: 应急照明及疏散指示控制箱 | E97: 0
C98: KECU | D98: 厨房自动灭火控制箱 | E98: 0
C99: VSCU | D99: 监控控制箱 | E99: 0
C100: NPCU | D100: 巡更控制箱 | E100: 0
C101: EGCU | D101: 门禁控制箱 | E101: 0
C102: IACU | D102: 入侵报警控制箱 | E102: 0
C103: OFCU | D103: 办公控制箱 | E103: 0
C104: GACV | D104: 燃气切断阀 | E104: 0
C105: AECV | D105: 止回阀 | E105: 0
C106: CADB | D106: 展示板 | E106: 0
C107: CCDB | D107: 供冷分水器 | E107: 0
C108: CCCL | D108: 供冷集水器 | E108: 0
C109: CHDB | D109: 供热分水器 | E109: 0
C110: CHCL | D110: 供热集水器 | E110: 0
C111: BADC | D111: 楼控数据采集器 | E111: 0
C112: CADD | D112: 排水沟 | E112: 0
C113: DGDG | D113: 柴油发电机 | E113: 0
C114: EGDL | D114: 门禁门锁 | E114: 0
C115: LPDL | D115: 引下线 | E115: 0
C116: CADM | D116: 装饰材料 | E116: 0
C117: VTDO | D117: 通风除味装置 | E117: 0
C118: SEDP | D118: 位移传感器 | E118: 0
C119: VSDR | D119: 硬盘录像机 | E119: 0
C120: TDDS | D120: 直流屏 | E120: 0
C121: MIDS | D121: 多媒体显示屏 | E121: 0
C122: GMDS | D122: 车库显示屏 | E122: 0
C123: FADS | D123: 火灾报警显示屏 | E123: 0
C124: BMDS | D124: 广播显示屏 | E124: 0
C125: BADS | D125: 楼控显示器 | E125: 0
C126: OFDS | D126: 办公显示器 | E126: 0
C127: DGDT | D127: 柴发储油箱 | E127: 0
C128: FSDV | D128: 干式报警阀组 | E128: 0
C129: TDLSDW | D129: 低压配电抽屉 | E129: 0
C130: CHEB | D130: 供热电锅炉 | E130: 0
C131: DHEB | D131: 生活热水电锅炉 | E131: 0
C132: KEEC | D132: 厨房自动灭火灭火剂容器 | E132: 0
C133: BAEC | D133: 楼控机柜 | E133: 0
C134: FDED | D134: 基础电梯基坑 | E134: 0
C135: SEEE | D135: 电度传感器 | E135: 0
C136: DHEH | D136: 生活热水电热水器 | E136: 0
C137: EEEI | D137: 疏散指示灯牌 | E137: 0
C138: ELEL | D138: 直梯 | E138: 0
C139: EEEL | D139: 应急照明灯具 | E139: 0
C140: WLEP | D140: 墙预埋件 | E140: 0
C141: DGEP | D141: 柴发尾气净化装置 | E141: 0
C142: ELES | D142: 扶梯 | E142: 0
C143: SSES | D143: 电动遮阳帘 | E143: 0
C144: FSET | D144: 消防末端试水装置 | E144: 0
C145: ELET | D145: 电梯曳引机 | E145: 0
C146: SAEW | D146: 强电线路 | E146: 0
C147: WAEW | D147: 弱电线路 | E147: 0
C148: LNEX | D148: 交换机 | E148: 0
C149: ATFA | D149: 地板空调器 | E149: 0
C150: CHFB | D150: 供热燃油锅炉 | E150: 0
C151: DHFB | D151: 生活热水燃油锅炉 | E151: 0
C152: ATFC | D152: 风机盘管 | E152: 0
C153: AEFC | D153: 变频器 | E153: 0
C154: ADFD | D154: 滤毒除湿机 | E154: 0
C155: FRFD | D155: 防火门 | E155: 0
C156: TVFE | D156: 电视前端设备 | E156: 0
C157: MIFE | D157: 多媒体前端设备 | E157: 0
C158: VSFE | D158: 监控前端设备 | E158: 0
C159: OFFE | D159: 办公前端设备 | E159: 0
C160: BMFE | D160: 广播前端设备 | E160: 0
C161: FEFE | D161: 灭火器 | E161: 0
C162: EGFG | D162: 速通门 | E162: 0
C163: ATFH | D163: 地板采暖设备 | E163: 0
C164: LAFI | D164: 水流指示器 | E164: 0
C165: SEFL | D165: 流量传感器 | E165: 0
C166: VTSF | D166: 通风风机 | E166: 0
C167: KLSF | D167: 厨房风机 | E167: 0
C168: ADSF | D168: 人防风机 | E168: 0
C169: SCEF | D169: 防排烟风机 | E169: 0
C170: IDFN | D170: 家具 | E170: 0
C171: FRFR | D171: 防火卷帘门 | E171: 0
C172: FSFT | D172: 泡沫储罐组 | E172: 0
C173: ATFT | D173: 新风过滤器 | E173: 0
C174: LAFT | D174: 水管过滤器 | E174: 0
C175: ATFU | D175: 新风机组 | E175: 0
C176: CHGB | D176: 供热燃气锅炉 | E176: 0
C177: DHGB | D177: 生活热水燃气锅炉 | E177: 0
C178: FDGD | D178: 基础梁 | E178: 0
C179: LPGD | D179: 接地装置 | E179: 0
C180: CCGH | D180: 空调地源热泵 | E180: 0
C181: DHGH | D181: 生活热水燃气热水器 | E181: 0
C182: GMGL | D182: 车位引导灯 | E182: 0
C183: GMGT | D183: 进出闸机 | E183: 0
C184: DHHA | D184: 生活热水辅热设备 | E184: 0
C185: FSHB | D185: 消火栓箱 | E185: 0
C186: ATHD | D186: 空调加湿器 | E186: 0
C187: IDHD | D187: 干手机 | E187: 0
C188: CAHD | D188: 栏杆 | E188: 0
C189: CCHE | D189: 供冷换热器 | E189: 0
C190: CHHE | D190: 供热换热器 | E190: 0
C191: DHHE | D191: 生活热水换热器 | E191: 0
C192: LNHF | D192: 硬件防火墙 | E192: 0
C193: TDHS | D193: 高压开关柜 | E193: 0
C194: BPHT | D194: 备用电源主机 | E194: 0
C195: BAHT | D195: 楼控主机 | E195: 0
C196: MIHT | D196: 多媒体主机 | E196: 0
C197: GMHT | D197: 车库主机 | E197: 0
C198: LNHT | D198: 服务器主机 | E198: 0
C199: PMHT | D199: 客流管理主机 | E199: 0
C200: TMHT | D200: 租户管理主机 | E200: 0
C201: MAHT | D201: 移动通信信号放大主机 | E201: 0
... 185 more rows

Sheet 知识库-词汇表-值
A1: 字典ID | B1: 字典名称 | C1: 中文词汇 | D1: 英文原文 | E1: 名称缩写
B2: 信息点编码词汇表 | C2: 第一 | D2: first | E2: 1st
C3: 第二 | D3: second | E3: 2nd
C4: 第三 | D4: third | E4: 3rd
C5: 能力 | D5: ability | E5: Ability
C6: 异常 | D6: abnormity | E6: Abnormity
C7: 吸收 | D7: absorb | E7: Absorb
C8: 吸收剂 | D8: absorbent | E8: Absorbent
C9: 吸收器 | D9: absorber | E9: Absorber
C10: 吸收率 | D10: absorptivity | E10: Absorptivity
C11: 空调 | D11: air conditioning | E11: AC
C12: 交流（电） | D12: alternate | E12: Alternate
C13: 累计 | D13: accumulation | E13: Acc
C14: 加速 | D14: accelerate | E14: Accelerate
C15: 门禁/接入层/准入 | D15: access | E15: Access
C16: 准确度 | D16: accuracy | E16: Accuracy
C17: 邻道功率 | D17: adjacent-channel power | E17: ACP
C18: 动作 | D18: action | E18: Action
C19: 有功（功率）/活性 | D19: active | E19: Active
C20: 实际 | D20: actual | E20: Actual
C21: 接合器 | D21: adapter | E21: Adapter
C22: 地址 | D22: address | E22: Address
C23: 调节 | D23: adjust | E23: Adjust
C24: 广告 | D24: advertising | E24: Advertise
C25: 曝气机 | D25: aerator | E25: Aerator
C26: 剩余（电流）/(处理)后 | D26: after | E26: After
C27: 年龄 | D27: age | E27: Age
C28: 空调箱 | D28: air hundling unit | E28: AHU
C29: （室内）风 | D29: air | E29: Air
C30: 密闭 | D30: airtight | E30: Airtight
C31: 报警 | D31: alarm | E31: Alarm
C32: 报警器 | D32: alertor | E32: Alertor
C33: 准确限制系数 | D33: accuracy limit factor | E33: ALF
C34: 允许 | D34: allow | E34: Allow
C35: 海拔 | D35: altitude | E35: Altitude
C36: 功放 | D36: amplifier | E36: Amplifier
C37: 锚杆 | D37: anchor | E37: Anchor
C38: 夹角 | D38: angle | E38: Angle
C39: 动物 | D39: animals | E39: Animal
C40: 负离子 | D40: anion | E40: Anion
C41: 天线 | D41: antenna | E41: Antenna
C42: 阻燃 | D42: antiflame | E42: Antiflame
C43: 防冻 | D43: antifreezing | E43: Antifreeze
C44: 除垢 | D44: antiscaling | E44: Antiscale
C45: 机器 | D45: apparatus | E45: Apparatus
C46: 视在（功率） | D46: apparent | E46: Apparent
C47: 适用 | D47: applicable | E47: Apply
C48: 空气质量指数 | D48: air quality index | E48: AQI
C49: 水生 | D49: aquatic | E49: Aquatic
C50: 档案 | D50: archives | E50: Archive
C51: 面积 | D51: area | E51: Area
C52: 资产 | D52: asset | E52: Asset
C53: 辅（柜） | D53: assist | E53: Assist
C54: 喷雾装置 | D54: atomizer | E54: Atomizer
C55: 衰减 | D55: attenuation | E55: Attenuation
C56: 音频 | D56: audio | E56: Audio
C57: 身份认证 | D57: authentication | E57: Authenticat
C58: 自动 | D58: automatic | E58: Auto
C59: 辅助(热源) | D59: auxiliary | E59: Auxiliary
C60: 可用的 | D60: available | E60: Available
C61: 平均 | D61: average | E61: Ave
C62: 轴 | D62: axis | E62: Axis
C63: 倒流 | D63: backflow | E63: Backflow
C64: 背板 | D64: backplane | E64: Backplane
C65: 备用/备份 | D65: backup | E65: Backup
C66: 后（加速） | D66: backward | E66: Backward
C67: 反洗 | D67: backwash | E67: Backwash
C68: 平衡 | D68: balance | E68: Balance
C69: 球(阀) | D69: ball | E69: Ball
C70: 宽带 | D70: band | E70: Band
C71: 带宽 | D71: bandwidth | E71: Bandwidth
C72: 条 | D72: bar | E72: Bar
C73: 底座 | D73: base | E73: Base
C74: 水池/水坑 | D74: basin | E74: Basin
C75: 浴缸 | D75: bathtub | E75: Bathtub
C76: 蓄电池 | D76: battery | E76: Battery
C77: 光束/梁/光型 | D77: beam | E77: Beam
C78: 承重 | D78: bearing | E78: Bearing
C79: （处理）前 | D79: before | E79: Before
C80: 带 | D80: belt | E80: Belt
C81: 弯曲 | D81: bending | E81: Bend
C82: 误码率 | D82: BER | E82: BER
C83: 最佳 | D83: best | E83: Best
C84: 偏差/误差 | D84: bias | E84: Bias
C85: 生物 | D85: biology | E85: Biology
C86: 砌块 | D86: block | E86: Block
C87: (水箱)板 | D87: board | E87: Board
C88: 锅炉 | D88: boiler | E88: Boiler
C89: 螺栓 | D89: bolt | E89: Bolt
C90: 合母（电压） | D90: bond | E90: Bond
C91: 瓶 | D91: bottle | E91: Bottle
C92: 底（板） | D92: bottom | E92: Bottom
C93: 箱形 | D93: box | E93: Box
C94: 支路 | D94: branch | E94: Br
C95: 品牌 | D95: brand | E95: Brand
C96: 破碎/断开 | D96: break | E96: Break
C97: 击穿 | D97: breakdown | E97: Breakdown
C98: 断路器 | D98: circuit breaker | E98: Breaker
C99: 亮度 | D99: brightness | E99: Bright
C100: 语音播报/广播 | D100: broadcast | E100: Broadcast
C101: 建筑/组建 | D101: building | E101: Build
C102: 地埋 | D102: buried | E102: Buried
C103: 燃烧 | D103: burn | E103: Burn
C104: 母线 | D104: bus | E104: Bus
C105: 按钮 | D105: button | E105: Button
C106: 旁通 | D106: bypass | E106: Bypass
C107: 柜 | D107: cabinet | E107: Cab
C108: 有线电视干线/电缆 | D108: cable | E108: Cable
C109: 呼叫 | D109: call | E109: Call
C110: 摄像头 | D110: camera | E110: Camera
C111: 雨蓬 | D111: canopy | E111: Canopy
C112: 容量/容积/能力 | D112: capacity | E112: Cap
C113: 容性 | D113: capacitive | E113: Capacitive
C114: 尿素 | D114: carbamide | E114: Carbamide
C115: 炭 | D115: carbon | E115: Carbon
C116: 注册卡 | D116: card | E116: Card
C117: 载波 | D117: carrier | E117: Carrier
C118: 吊顶 | D118: ceiling | E118: Ceiling
C119: 离心 | D119: centrifugal | E119: Centrifugal
C120: 甲烷 | D120: CH4 | E120: CH4
C121: 链 | D121: chain | E121: Chain
C122: 换（气、热） | D122: change | E122: Change
C123: 电视台/频道/通道 | D123: channel | E123: Channel
C124: 特性 | D124: characteristics | E124: Character
C125: 充注/充装/充电/计价 | D125: charge | E125: Charge
C126: 止回(阀)/质检 | D126: check | E126: Check
C127: 药/化学 | D127: chemical | E127: Chemical
C128: 冷冻（水、泵） | D128: chilling | E128: Chill
C129: 冷机 | D129: chiller | E129: Chiller
C130: 芯片 | D130: chip | E130: Chip
C131: 色度 | D131: chromaticity | E131: Chroma
C132: 线路 | D132: circuit | E132: Circuit
C133: 圆形 | D133: circular | E133: Circular
C134: 城市 | D134: city | E134: City
C135: 氯 | D135: chlorine | E135: Cl
C136: 清晰度 | D136: clarity | E136: Clarity
C137: 清掏/清挖/洁净 | D137: clean/cleanliness | E137: Clean
C138: 气候 | D138: climate | E138: Climate
C139: 闭（环）/关合/合闸 | D139: close | E139: Close
C140: CO | D140: CO | E140: CO
C141: 二氧化碳 | D141: carbon dioxide | E141: CO2
C142: 燃煤 | D142: coal | E142: Coal
C143: 涂层 | D143: coating | E143: Coat
C144: 同轴线 | D144: coaxial | E144: Coaxial
C145: 系数 | D145: coefficient | E145: Coeff
C146: 盘管/线圈 | D146: coil | E146: Coil
C147: 收集 | D147: collect | E147: Collect
C148: 集水器/集热器 | D148: collector | E148: Collector
C149: 颜色 | D149: color | E149: Color
C150: 柱 | D150: column | E150: Column
C151: 组合 | D151: combine | E151: Combine
C152: 通讯 | D152: communication | E152: Communicatation
C153: 公司 | D153: company | E153: Company
C154: 补偿 | D154: compensation | E154: Compensation
C155: 分量/组件 | D155: component | E155: Component
C156: 压缩/抗压 | D156: compress | E156: Compress
C157: 压缩机 | D157: compressor | E157: Compressor
C158: 电脑 | D158: computer | E158: Computer
C159: 浓度 | D159: concentrate | E159: Concentrate
C160: 混凝土 | D160: concrete | E160: Concrete
C161: 并发 | D161: concurrent | E161: Concurrent
C162: 冷凝器 | D162: condenser | E162: Cond
C163: 液化 | D163: condense | E163: Condense
C164: 传热 | D164: conduction | E164: Conduction
C165: 导体 | D165: conductor | E165: Conductor
C166: 连接/接线/入户/对应关系 | D166: connecting | E166: Connect
C167: 定(压) | D167: constant | E167: Constant
C168: 施工方 | D168: constructor | E168: Constructor
C169: 消耗 | D169: consumption | E169: Consum
C170: 接触/触点 | D170: contact | E170: Contact
C171: 联系人/接触器 | D171: contactor | E171: Contactor
C172: 连续/持续 | D172: continue | E172: Continue
C173: 合同 | D173: contract | E173: Contract
C174: 对比度 | D174: contrast | E174: Contrast
C175: 汇聚层 | D175: convergence | E175: Convergence
C176: 转换率 | D176: conversion | E176: Conversion
C177: 供冷/降温 | D177: cooling | E177: Cool
C178: 芯/核心 | D178: core | E178: Core
C179: 腐蚀 | D179: corrosion | E179: Corrosion
C180: 计时 | D180: count | E180: Count
C181: 占地/覆盖 | D181: cover | E181: Cover
C182: 爬电 | D182: creepage | E182: Creep
C183: 显色指数 | D183: color rendering index | E183: CRI
C184: 截面 | D184: cross | E184: Cross
C185: 晶体 | D185: crystal | E185: Crystal
C186: 控制 | D186: control | E186: Ctrl
C187: 控制器 | D187: controller | E187: Ctrler
C188: 当前 | D188: current | E188: Current
C189: （风）幕 | D189: curtain | E189: Curtain
C190: 曲线 | D190: curve | E190: Curve
C191: 垫层 | D191: cushion | E191: Cushion
C192: 切断/切割 | D192: cut | E192: Cut
C193: 流量系数 | D193: flow factor | E193: Cv
C194: 循环 | D194: cycle | E194: Cycle
C195: 气缸/钢瓶 | D195: cylinder | E195: Cylinder
C196: 绝对湿度 | D196: absolute humidity | E196: D
C197: 闸 | D197: damper | E197: Damper
C198: 阻尼 | D198: damping | E198: Damping
C199: 危险 | D199: dangerous | E199: Danger
C200: 数据 | D200: data | E200: Data
... 762 more rows

Sheet 知识库-地域性质-类
A1: 字典ID | B1: 字典名称 | C1: 字典代码 | D1: 名称 | E1: 字典类型 | F1: 父类字典名称 | G1: 父类字典代码 | H1: 父类名称 | I1: 备注
B2: 气候分区表 | C2: 11 | D2: 严寒A区 | E2: 0 | G2: 10 | H2: 严寒地区
C3: 12 | D3: 严寒B区 | E3: 0 | G3: 10 | H3: 严寒地区
C4: 13 | D4: 严寒C区 | E4: 0 | G4: 10 | H4: 严寒地区
C5: 21 | D5: 寒冷A区 | E5: 0 | G5: 20 | H5: 寒冷地区
C6: 22 | D6: 寒冷B区 | E6: 0 | G6: 20 | H6: 寒冷地区
C7: 31 | D7: 夏热冬冷A区 | E7: 0 | G7: 30 | H7: 夏热冬冷地区
C8: 32 | D8: 夏热冬冷B区 | E8: 0 | G8: 30 | H8: 夏热冬冷地区
C9: 33 | D9: 夏热冬冷C区 | E9: 0 | G9: 30 | H9: 夏热冬冷地区
C10: 51 | D10: 温和A区 | E10: 0 | G10: 50 | H10: 温和地区
C11: 52 | D11: 温和B区 | E11: 0
C12: 10 | D12: 严寒地区 | E12: 0
C13: 20 | D13: 寒冷地区 | E13: 0
C14: 30 | D14: 夏热冬冷地区 | E14: 0
C15: 40 | D15: 夏热冬暖地区 | E15: 0
C16: 50 | D16: 温和地区 | E16: 0
B18: 地理分区 | C18: 11 | D18: 北京，天津 | E18: 0 | G18: 1 | H18: 华北地区 | I18: 直辖市
C19: 12 | D19: 河北，山西 | E19: 0 | G19: 1 | H19: 华北地区 | I19: 省
C20: 13 | D20: 内蒙古 | E20: 0 | G20: 1 | H20: 华北地区 | I20: 自治区
C21: 22 | D21: 辽宁，吉林，黑龙江 | E21: 0 | G21: 2 | H21: 东北地区 | I21: 省
C22: 31 | D22: 上海 | E22: 0 | G22: 3 | H22: 华东地区 | I22: 直辖市
C23: 32 | D23: 江苏，浙江，安徽，福建，江西，山东 | E23: 0 | G23: 3 | H23: 华东地区 | I23: 省
C24: 42 | D24: 河南，湖北，湖南 | E24: 0 | G24: 4 | H24: 华中地区 | I24: 省
C25: 52 | D25: 广东，海南 | E25: 0 | G25: 5 | H25: 华南地区 | I25: 省
C26: 53 | D26: 广西 | E26: 0 | G26: 5 | H26: 华南地区 | I26: 自治区
C27: 61 | D27: 重庆 | E27: 0 | G27: 6 | H27: 西南地区 | I27: 直辖市
C28: 62 | D28: 四川，贵州，云南 | E28: 0 | G28: 6 | H28: 西南地区 | I28: 省
C29: 63 | D29: 西藏 | E29: 0 | G29: 6 | H29: 西南地区 | I29: 自治区
C30: 72 | D30: 陕西，甘肃，青海 | E30: 0 | G30: 7 | H30: 西北地区 | I30: 省
C31: 73 | D31: 宁夏，新疆 | E31: 0 | G31: 7 | H31: 西北地区 | I31: 自治区
C32: 75 | D32: 新疆建设兵团 | E32: 0 | G32: 7 | H32: 西北地区 | I32: 其他
C33: 84 | D33: 香港，澳门 | E33: 0 | G33: 8 | H33: 港澳台地区 | I33: 特别行政区
C34: 85 | D34: 台湾 | E34: 0 | G34: 8 | H34: 港澳台地区 | I34: 其他
C35: 1 | D35: 华北地区 | E35: 0 | G35: 0 | H35: 其他
C36: 2 | D36: 东北地区 | E36: 0
C37: 3 | D37: 华东地区 | E37: 0
C38: 4 | D38: 华中地区 | E38: 0
C39: 5 | D39: 华南地区 | E39: 0
C40: 6 | D40: 西南地区 | E40: 0
C41: 7 | D41: 西北地区 | E41: 0
C42: 8 | D42: 港澳台地区 | E42: 0
C43: 0 | D43: 其他 | E43: 0
C44: 1000 | D44: 中国
C45: 1100 | D45: 直辖市 | G45: 1000 | H45: 中国
C46: 1110 | D46: 一线城市 | G46: 1100 | H46: 直辖市
C47: 1120 | D47: 二线发达城市 | G47: 1100 | H47: 直辖市
C48: 1200 | D48: 省会 | G48: 1000 | H48: 中国
C49: 1210 | D49: 一线城市 | G49: 1200 | H49: 省会
C50: 1220 | D50: 二线城市 | G50: 1200 | H50: 省会
C51: 1221 | D51: 二线发达城市 | G51: 1220 | H51: 二线城市
C52: 1222 | D52: 二线中等发达城市 | G52: 1220 | H52: 二线城市
C53: 1223 | D53: 二线发展较弱城市 | G53: 1220 | H53: 二线城市
C54: 1230 | D54: 三线城市 | G54: 1220 | H54: 二线城市
C55: 1300 | D55: 自治区首府 | G55: 1000 | H55: 中国
C56: 1310 | D56: 三线城市 | G56: 1300 | H56: 自治区首府
C57: 1320 | D57: 无线城市 | G57: 1300 | H57: 自治区首府
C58: 1400 | D58: 地级市 | G58: 1000 | H58: 中国
C59: 1410 | D59: 一线城市 | G59: 1400 | H59: 地级市
C60: 1420 | D60: 二线城市 | G60: 1400 | H60: 地级市
C61: 1421 | D61: 二线发达城市 | G61: 1420 | H61: 二线城市
C62: 1422 | D62: 二线中等发达城市 | G62: 1420 | H62: 二线城市
C63: 1423 | D63: 二线发展较弱城市 | G63: 1420 | H63: 二线城市
C64: 1430 | D64: 三线城市 | G64: 1400 | H64: 地级市
C65: 1440 | D65: 四线城市 | G65: 1400 | H65: 地级市
C66: 1450 | D66: 五线城市 | G66: 1400 | H66: 地级市
C67: 1500 | D67: 县级市 | G67: 1000 | H67: 中国
C68: 1510 | D68: 三线城市 | G68: 1500 | H68: 县级市
C69: 1520 | D69: 四线城市 | G69: 1500 | H69: 县级市
C70: 1530 | D70: 五线城市 | G70: 1500 | H70: 县级市
C71: 1540 | D71: 六线城市 | G71: 1500 | H71: 县级市
C72: 1600 | D72: 港澳台地区 | G72: 1000 | H72: 中国
C73: 1610 | D73: 特别行政区 | G73: 1600 | H73: 港澳台地区
C74: 1620 | D74: 其他 | G74: 1600 | H74: 港澳台地区
C75: 2000 | D75: 海外
C76: 0000 | D76: 其他
B78: 国籍代码 | C78: 00 | D78: 中华人民共和国
B79: 省级代码 | C79: 11 | D79: 北京市 | G79: 00 | H79: 中华人民共和国
C80: 12 | D80: 天津市 | G80: 00 | H80: 中华人民共和国
C81: 13 | D81: 河北省 | G81: 00 | H81: 中华人民共和国
C82: 14 | D82: 山西省 | G82: 00 | H82: 中华人民共和国
C83: 15 | D83: 内蒙古自治区 | G83: 00 | H83: 中华人民共和国
C84: 21 | D84: 辽宁省 | G84: 00 | H84: 中华人民共和国
C85: 22 | D85: 吉林省 | G85: 00 | H85: 中华人民共和国
C86: 23 | D86: 黑龙江省 | G86: 00 | H86: 中华人民共和国
C87: 31 | D87: 上海市 | G87: 00 | H87: 中华人民共和国
C88: 32 | D88: 江苏省 | G88: 00 | H88: 中华人民共和国
C89: 33 | D89: 浙江省 | G89: 00 | H89: 中华人民共和国
C90: 34 | D90: 安徽省 | G90: 00 | H90: 中华人民共和国
C91: 35 | D91: 福建省 | G91: 00 | H91: 中华人民共和国
C92: 36 | D92: 江西省 | G92: 00 | H92: 中华人民共和国
C93: 37 | D93: 山东省 | G93: 00 | H93: 中华人民共和国
C94: 41 | D94: 河南省 | G94: 00 | H94: 中华人民共和国
C95: 42 | D95: 湖北省 | G95: 00 | H95: 中华人民共和国
C96: 43 | D96: 湖南省 | G96: 00 | H96: 中华人民共和国
C97: 44 | D97: 广东省 | G97: 00 | H97: 中华人民共和国
C98: 45 | D98: 广西壮族自治区 | G98: 00 | H98: 中华人民共和国
C99: 46 | D99: 海南省 | G99: 00 | H99: 中华人民共和国
C100: 50 | D100: 重庆市 | G100: 00 | H100: 中华人民共和国
C101: 51 | D101: 四川省 | G101: 00 | H101: 中华人民共和国
C102: 52 | D102: 贵州省 | G102: 00 | H102: 中华人民共和国
C103: 53 | D103: 云南省 | G103: 00 | H103: 中华人民共和国
C104: 54 | D104: 西藏自治区 | G104: 00 | H104: 中华人民共和国
C105: 61 | D105: 陕西省 | G105: 00 | H105: 中华人民共和国
C106: 62 | D106: 甘肃省 | G106: 00 | H106: 中华人民共和国
C107: 63 | D107: 青海省 | G107: 00 | H107: 中华人民共和国
C108: 64 | D108: 宁夏回族自治区 | G108: 00 | H108: 中华人民共和国
C109: 65 | D109: 新疆维吾尔自治区 | G109: 00 | H109: 中华人民共和国
C110: 71 | D110: 台湾省 | G110: 00 | H110: 中华人民共和国
C111: 81 | D111: 香港特别行政区 | G111: 00 | H111: 中华人民共和国
C112: 82 | D112: 澳门特别行政区 | G112: 00 | H112: 中华人民共和国
C113: 01 | D113: 城区 | G113: 11 | H113: 北京市
C114: 01 | D114: 城区 | G114: 12 | H114: 天津市
C115: 01 | D115: 石家庄市 | G115: 13 | H115: 河北省
C116: 02 | D116: 唐山市 | G116: 13 | H116: 河北省
C117: 03 | D117: 秦皇岛市 | G117: 13 | H117: 河北省
C118: 04 | D118: 邯郸市 | G118: 13 | H118: 河北省
C119: 05 | D119: 邢台市 | G119: 13 | H119: 河北省
C120: 06 | D120: 保定市 | G120: 13 | H120: 河北省
C121: 07 | D121: 张家口市 | G121: 13 | H121: 河北省
C122: 08 | D122: 承德市 | G122: 13 | H122: 河北省
C123: 09 | D123: 沧州市 | G123: 13 | H123: 河北省
C124: 10 | D124: 廊坊市 | G124: 13 | H124: 河北省
C125: 11 | D125: 衡水市 | G125: 13 | H125: 河北省

Sheet 知识库-地域特性-值
A1: 地区名称 | B1: 代码 | C1: 经度 | D1: 纬度 | E1: 海拔高度m | F1: 气候区 | G1: 发展水平
A2: 中华人民共和国 | B2: 000000
A3: 北京市 | B3: 110000 | C3: 116.4 | D3: 39.9 | E3: 54 | F3: 20 | G3: 1110
A4: 市辖区 | B4: 110100
A5: 东城区 | B5: 110101 | C5: 116.42 | D5: 39.93 | E5: 53
A6: 西城区 | B6: 110102 | C6: 116.37 | D6: 39.92 | E6: 53
A7: 朝阳区 | B7: 110105 | C7: 116.43 | D7: 39.92 | E7: 54
A8: 丰台区 | B8: 110106 | C8: 116.28 | D8: 39.85 | E8: 52
A9: 石景山区 | B9: 110107 | C9: 116.22 | D9: 39.9 | E9: 75
A10: 海淀区 | B10: 110108 | C10: 102.12 | D10: 36.5 | E10: 52
A11: 门头沟区 | B11: 110109 | C11: 116.1 | D11: 39.93 | E11: 103
A12: 房山区 | B12: 110111 | C12: 116.13 | D12: 39.75 | E12: 54
A13: 通州区 | B13: 110112 | C13: 116.65 | D13: 39.92 | E13: 51
A14: 顺义区 | B14: 110113 | C14: 116.65 | D14: 40.13 | E14: 45
A15: 昌平区 | B15: 110114 | C15: 116.23 | D15: 40.22 | E15: 68
A16: 大兴区 | B16: 110115 | C16: 116.33 | D16: 39.73 | E16: 42
A17: 怀柔区 | B17: 110116 | C17: 116.63 | D17: 40.32 | E17: 54
A18: 平谷区 | B18: 110117 | C18: 117.12 | D18: 40.13 | E18: 33
A19: 密云区 | B19: 110228 | C19: 116.83 | D19: 40.37 | E19: 81
A20: 延庆区 | B20: 110229 | C20: 115.97 | D20: 40.45 | E20: 484
A21: 天津市 | B21: 120000 | C21: 117.2 | D21: 39.12 | E21: 3.3 | F21: 20 | G21: 1110
A22: 市辖区 | B22: 120100
A23: 和平区 | B23: 120101 | C23: 117.2 | D23: 39.12 | E23: 6
A24: 河东区 | B24: 120102 | C24: 117.22 | D24: 39.12 | E24: 6
A25: 河西区 | B25: 120103 | C25: 117.22 | D25: 39.12 | E25: 4
A26: 南开区 | B26: 120104 | C26: 117.15 | D26: 39.13 | E26: 7
A27: 河北区 | B27: 120105 | C27: 117.18 | D27: 39.15 | E27: 14
A28: 红桥区 | B28: 120106 | C28: 117.15 | D28: 39.17 | E28: 7
A29: 东丽区 | B29: 120110 | C29: 117.3 | D29: 39.08 | E29: 8
A30: 西青区 | B30: 120111 | C30: 117 | D30: 39.13 | E30: 6
A31: 津南区 | B31: 120112 | C31: 117.38 | D31: 38.98 | E31: 3
A32: 北辰区 | B32: 120113 | C32: 117.13 | D32: 39.22 | E32: 7
A33: 武清区 | B33: 120114 | C33: 117.03 | D33: 39.38 | E33: 9
A34: 宝坻区 | B34: 120115 | C34: 117.3 | D34: 39.72 | E34: 8
A35: 滨海新区 | B35: 120116
A36: 宁河区 | B36: 120117 | C36: 117.82 | D36: 39.33 | E36: 3
A37: 静海区 | B37: 120118 | C37: 116.92 | D37: 38.93 | E37: 6
A38: 蓟州区 | B38: 120119 | C38: 117.4 | D38: 40.05 | E38: 6
A39: 河北省 | B39: 130000
A40: 石家庄市 | B40: 130100 | C40: 114.52 | D40: 38.05 | E40: 80.5 | F40: 20 | G40: 1222
A41: 市辖区 | B41: 130101
A42: 长安区 | B42: 130102 | C42: 114.52 | D42: 38.05 | E42: 74
A43: 桥西区 | B43: 130104 | C43: 114.47 | D43: 38.03 | E43: 73
A44: 新华区 | B44: 130105 | C44: 114.47 | D44: 38.05 | E44: 80
A45: 井陉矿区 | B45: 130107 | C45: 114.05 | D45: 38.08 | E45: 277
A46: 裕华区 | B46: 130108 | C46: 114.52 | D46: 38.02 | E46: 67
A47: 藁城市 | B47: 130109 | C47: 114.83 | D47: 38.03 | E47: 59
A48: 鹿泉市 | B48: 130110 | C48: 114.3 | D48: 38.08 | E48: 122
A49: 栾城县 | B49: 130111 | C49: 114.65 | D49: 37.88 | E49: 55
A50: 井陉县 | B50: 130121 | C50: 114.13 | D50: 38.03 | E50: 254
A51: 正定县 | B51: 130123 | C51: 114.57 | D51: 38.15 | E51: 74
A52: 行唐县 | B52: 130125 | C52: 114.55 | D52: 38.43 | E52: 102
A53: 灵寿县 | B53: 130126 | C53: 114.37 | D53: 38.3 | E53: 108
A54: 高邑县 | B54: 130127 | C54: 114.6 | D54: 37.6 | E54: 50
A55: 深泽县 | B55: 130128 | C55: 115.2 | D55: 38.18 | E55: 41
A56: 赞皇县 | B56: 130129 | C56: 114.38 | D56: 37.67 | E56: 121
A57: 无极县 | B57: 130130 | C57: 114.97 | D57: 38.18 | E57: 46
A58: 平山县 | B58: 130131 | C58: 114.2 | D58: 38.25 | E58: 138
A59: 元氏县 | B59: 130132 | C59: 114.52 | D59: 37.75 | E59: 66
A60: 赵县 | B60: 130133 | C60: 114.77 | D60: 37.75 | E60: 44
A61: 辛集市 | B61: 130181 | C61: 115.22 | D61: 37.92 | E61: 42
A62: 晋州市 | B62: 130183 | C62: 115.03 | D62: 38.03 | E62: 47
A63: 新乐市 | B63: 130184 | C63: 114.68 | D63: 38.35 | E63: 78
A64: 唐山市 | B64: 130200 | C64: 118.2 | D64: 39.63 | E64: 27.8 | F64: 20 | G64: 1423
A65: 市辖区 | B65: 130201
A66: 路南区 | B66: 130202 | C66: 118.17 | D66: 39.63 | E66: 25
A67: 路北区 | B67: 130203 | C67: 118.22 | D67: 39.63 | E67: 28
A68: 古冶区 | B68: 130204 | C68: 118.42 | D68: 39.73 | E68: 48
A69: 开平区 | B69: 130205 | C69: 118.27 | D69: 39.68 | E69: 34
A70: 丰南区 | B70: 130207 | C70: 118.1 | D70: 39.57 | E70: 6
A71: 丰润区 | B71: 130208 | C71: 118.17 | D71: 39.83 | E71: 51
A72: 曹妃甸区 | B72: 130209
A73: 滦县 | B73: 130223 | C73: 118.7 | D73: 39.75 | E73: 46
A74: 滦南县 | B74: 130224 | C74: 118.68 | D74: 39.5 | E74: 12
A75: 乐亭县 | B75: 130225 | C75: 118.9 | D75: 39.42 | E75: 10.5
A76: 迁西县 | B76: 130227 | C76: 118.32 | D76: 40.15 | E76: 107
A77: 玉田县 | B77: 130229 | C77: 117.73 | D77: 39.88 | E77: 15
A78: 遵化市 | B78: 130281 | C78: 117.95 | D78: 40.18 | E78: 54.9
A79: 迁安市 | B79: 130283 | C79: 118.7 | D79: 40.02 | E79: 13
A80: 秦皇岛市 | B80: 130300 | C80: 119.6 | D80: 39.93 | E80: 2.1 | F80: 20 | G80: 1440
A81: 市辖区 | B81: 130301
A82: 海港区 | B82: 130302 | C82: 119.6 | D82: 39.93 | E82: 8
A83: 山海关区 | B83: 130303 | C83: 119.77 | D83: 40 | E83: 3
A84: 北戴河区 | B84: 130304 | C84: 119.48 | D84: 39.83 | E84: 13
A85: 抚宁区 | B85: 130306 | C85: 119.23 | D85: 39.88 | E85: 19
A86: 青龙满族自治县 | B86: 130321 | C86: 118.95 | D86: 40.4 | E86: 227.2
A87: 昌黎县 | B87: 130322 | C87: 119.17 | D87: 39.7 | E87: 22
A88: 卢龙县 | B88: 130324 | C88: 118.87 | D88: 39.88 | E88: 55
A89: 邯郸市 | B89: 130400 | C89: 114.48 | D89: 36.62 | E89: 55 | F89: 20 | G89: 1430
A90: 市辖区 | B90: 130401
A91: 邯山区 | B91: 130402 | C91: 114.48 | D91: 36.6 | E91: 63
A92: 丛台区 | B92: 130403 | C92: 114.48 | D92: 36.63 | E92: 56
A93: 复兴区 | B93: 130404 | C93: 114.45 | D93: 36.63 | E93: 62
A94: 峰峰矿区 | B94: 130406 | C94: 114.2 | D94: 36.42 | E94: 132
A95: 肥乡区 | B95: 130407 | C95: 114.8 | D95: 36.55 | E95: 53
A96: 永年区 | B96: 130408 | C96: 114.48 | D96: 36.78 | E96: 67
A97: 临漳县 | B97: 130423 | C97: 114.62 | D97: 36.35 | E97: 65
A98: 成安县 | B98: 130424 | C98: 114.68 | D98: 36.43 | E98: 59
A99: 大名县 | B99: 130425 | C99: 115.15 | D99: 36.28 | E99: 47
A100: 涉县 | B100: 130426 | C100: 113.67 | D100: 36.57 | E100: 441
A101: 磁县 | B101: 130427 | C101: 114.37 | D101: 36.35 | E101: 75
A102: 邱县 | B102: 130430 | C102: 115.17 | D102: 36.82 | E102: 39
A103: 鸡泽县 | B103: 130431 | C103: 114.87 | D103: 36.92 | E103: 37
A104: 广平县 | B104: 130432 | C104: 114.93 | D104: 36.48 | E104: 52
A105: 馆陶县 | B105: 130433 | C105: 115.3 | D105: 36.53 | E105: 43
A106: 魏县 | B106: 130434 | C106: 114.93 | D106: 36.37 | E106: 53
A107: 曲周县 | B107: 130435 | C107: 114.95 | D107: 36.78 | E107: 41
A108: 武安市 | B108: 130481 | C108: 114.2 | D108: 36.7 | E108: 194
A109: 邢台市 | B109: 130500 | C109: 114.48 | D109: 37.07 | E109: 76.8 | F109: 20 | G109: 1440
A110: 市辖区 | B110: 130501
A111: 桥东区 | B111: 130502 | C111: 114.5 | D111: 37.07 | E111: 73
A112: 桥西区 | B112: 130503 | C112: 114.47 | D112: 37.05 | E112: 84
A113: 邢台县 | B113: 130521 | C113: 114.5 | D113: 37.08 | E113: 58
A114: 临城县 | B114: 130522 | C114: 114.5 | D114: 37.43 | E114: 100
A115: 内丘县 | B115: 130523 | C115: 114.52 | D115: 37.3 | E115: 78
A116: 柏乡县 | B116: 130524 | C116: 114.68 | D116: 37.5 | E116: 38
A117: 隆尧县 | B117: 130525 | C117: 114.77 | D117: 37.35 | E117: 37
A118: 任县 | B118: 130526 | C118: 114.68 | D118: 37.13 | E118: 42
A119: 南和县 | B119: 130527 | C119: 114.68 | D119: 37 | E119: 46
A120: 宁晋县 | B120: 130528 | C120: 114.92 | D120: 37.62 | E120: 36
A121: 巨鹿县 | B121: 130529 | C121: 115.03 | D121: 37.22 | E121: 31
A122: 新河县 | B122: 130530 | C122: 115.25 | D122: 37.53 | E122: 29
A123: 广宗县 | B123: 130531 | C123: 115.15 | D123: 37.07 | E123: 33
A124: 平乡县 | B124: 130532 | C124: 115.03 | D124: 37.07 | E124: 34
A125: 威县 | B125: 130533 | C125: 115.25 | D125: 36.98 | E125: 34
A126: 清河县 | B126: 130534 | C126: 115.67 | D126: 37.07 | E126: 33
A127: 临西县 | B127: 130535 | C127: 115.5 | D127: 36.85 | E127: 37
A128: 南宫市 | B128: 130581 | C128: 115.38 | D128: 37.35 | E128: 27.4
A129: 沙河市 | B129: 130582 | C129: 114.5 | D129: 36.85 | E129: 65
A130: 保定市 | B130: 130600 | C130: 115.47 | D130: 38.87 | E130: 17.2 | F130: 20 | G130: 1430
A131: 市辖区 | B131: 130601
A132: 竞秀区 | B132: 130602
A133: 莲池区 | B133: 130606
A134: 满城区 | B134: 130607 | C134: 115.32 | D134: 38.95 | E134: 44
A135: 清苑区 | B135: 130608 | C135: 115.48 | D135: 38.77 | E135: 17
A136: 徐水区 | B136: 130609 | C136: 115.65 | D136: 39.02 | E136: 20
A137: 涞水县 | B137: 130623 | C137: 115.72 | D137: 39.4 | E137: 43
A138: 阜平县 | B138: 130624 | C138: 114.18 | D138: 38.85 | E138: 274
A139: 定兴县 | B139: 130626 | C139: 115.77 | D139: 39.27 | E139: 29
A140: 唐县 | B140: 130627 | C140: 114.98 | D140: 38.75 | E140: 74
A141: 高阳县 | B141: 130628 | C141: 115.78 | D141: 38.68 | E141: 13
A142: 容城县 | B142: 130629 | C142: 115.87 | D142: 39.05 | E142: 16
A143: 涞源县 | B143: 130630 | C143: 114.68 | D143: 39.35 | E143: 859
A144: 望都县 | B144: 130631 | C144: 115.15 | D144: 38.72 | E144: 48
A145: 安新县 | B145: 130632 | C145: 115.93 | D145: 38.92 | E145: 9
A146: 易县 | B146: 130633 | C146: 115.5 | D146: 39.35 | E146: 59
A147: 曲阳县 | B147: 130634 | C147: 114.7 | D147: 38.62 | E147: 90
A148: 蠡县 | B148: 130635 | C148: 115.57 | D148: 38.48 | E148: 21
A149: 顺平县 | B149: 130636 | C149: 115.13 | D149: 38.83 | E149: 52
A150: 博野县 | B150: 130637 | C150: 115.47 | D150: 38.45 | E150: 26
A151: 雄县 | B151: 130638 | C151: 116.1 | D151: 38.98 | E151: 9
A152: 涿州市 | B152: 130681 | C152: 115.97 | D152: 39.48 | E152: 37
A153: 定州市 | B153: 130682 | C153: 114.97 | D153: 38.52 | E153: 59
A154: 安国市 | B154: 130683 | C154: 115.32 | D154: 38.42 | E154: 34
A155: 高碑店市 | B155: 130684 | C155: 115.85 | D155: 39.33 | E155: 34
A156: 张家口市 | B156: 130700 | C156: 114.88 | D156: 40.82 | E156: 724.2 | F156: 20 | G156: 1440
A157: 市辖区 | B157: 130701
A158: 桥东区 | B158: 130702 | C158: 114.9 | D158: 40.78 | E158: 768
A159: 桥西区 | B159: 130703 | C159: 114.87 | D159: 40.83 | E159: 775
A160: 宣化区 | B160: 130705 | C160: 115.05 | D160: 40.6 | E160: 648
A161: 下花园区 | B161: 130706 | C161: 115.27 | D161: 40.48 | E161: 611
A162: 万全区 | B162: 130708 | C162: 114.72 | D162: 40.75 | E162: 750
A163: 崇礼区 | B163: 130709 | C163: 115.27 | D163: 40.97 | E163: 1251
A164: 张北县 | B164: 130722 | C164: 114.7 | D164: 41.15 | E164: 1390
A165: 康保县 | B165: 130723 | C165: 114.62 | D165: 41.85 | E165: 1422
A166: 沽源县 | B166: 130724 | C166: 115.7 | D166: 41.67 | E166: 1411
A167: 尚义县 | B167: 130725 | C167: 113.97 | D167: 41.08 | E167: 1353
A168: 蔚县 | B168: 130726 | C168: 114.57 | D168: 39.85 | E168: 909.5
A169: 阳原县 | B169: 130727 | C169: 114.17 | D169: 40.12 | E169: 931
A170: 怀安县 | B170: 130728 | C170: 114.42 | D170: 40.67 | E170: 828
A171: 怀来县 | B171: 130730 | C171: 115.52 | D171: 40.4 | E171: 564
A172: 涿鹿县 | B172: 130731 | C172: 115.22 | D172: 40.38 | E172: 534
A173: 赤城县 | B173: 130732 | C173: 115.83 | D173: 40.92 | E173: 881
A174: 承德市 | B174: 130800 | C174: 117.93 | D174: 40.97 | E174: 377.2 | F174: 20 | G174: 1440
A175: 市辖区 | B175: 130801
A176: 双桥区 | B176: 130802 | C176: 117.93 | D176: 40.97 | E176: 351
A177: 双滦区 | B177: 130803 | C177: 117.78 | D177: 40.95 | E177: 389
A178: 鹰手营子矿区 | B178: 130804 | C178: 117.65 | D178: 40.55 | E178: 478
A179: 承德县 | B179: 130821 | C179: 118.17 | D179: 40.77 | E179: 292
A180: 兴隆县 | B180: 130822 | C180: 117.52 | D180: 40.43 | E180: 578
A181: 滦平县 | B181: 130824 | C181: 117.33 | D181: 40.93 | E181: 515
A182: 隆化县 | B182: 130825 | C182: 117.72 | D182: 41.32 | E182: 567
A183: 丰宁满族自治县 | B183: 130826 | C183: 116.65 | D183: 41.2 | E183: 659.7
A184: 宽城满族自治县 | B184: 130827 | C184: 118.48 | D184: 40.6 | E184: 303
A185: 围场满族蒙古族自治县 | B185: 130828 | C185: 117.75 | D185: 41.93 | E185: 842.8
A186: 平泉市 | B186: 130881 | C186: 118.68 | D186: 41 | E186: 507
A187: 沧州市 | B187: 130900 | C187: 116.83 | D187: 38.3 | E187: 9.6 | F187: 20 | G187: 1430
A188: 市辖区 | B188: 130901
A189: 新华区 | B189: 130902 | C189: 116.87 | D189: 38.32 | E189: 10
A190: 运河区 | B190: 130903 | C190: 116.85 | D190: 38.32 | E190: 12
A191: 沧县 | B191: 130921 | C191: 116.87 | D191: 38.3 | E191: 8
A192: 青县 | B192: 130922 | C192: 116.82 | D192: 38.58 | E192: 9
A193: 东光县 | B193: 130923 | C193: 116.53 | D193: 37.88 | E193: 8
A194: 海兴县 | B194: 130924 | C194: 117.48 | D194: 38.13 | E194: 7.3
A195: 盐山县 | B195: 130925 | C195: 117.22 | D195: 38.05 | E195: 12
A196: 肃宁县 | B196: 130926 | C196: 115.83 | D196: 38.43 | E196: 17
A197: 南皮县 | B197: 130927 | C197: 116.7 | D197: 38.03 | E197: 12
A198: 吴桥县 | B198: 130928 | C198: 116.38 | D198: 37.62 | E198: 20
A199: 献县 | B199: 130929 | C199: 116.12 | D199: 38.18 | E199: 16
A200: 孟村回族自治县 | B200: 130930 | C200: 117.1 | D200: 38.07 | E200: 13
... 3734 more rows

Sheet 知识库-变配电设备-类
A1: 表 | B1: 信息点 | C1: 信息点编码 | D1: 单位 | E1: 类型 | F1: 优先级 | G1: 输入方式 | H1: 字典 | I1: 分级标签 | K1: 备注
A2: TDTF变压器 | B2: 高压侧额定电压 | C2: HURatedU | D2: kV | E2: Num | F2: S | G2: A2 | I2: 技术参数
B3: 低压侧额定电压 | C3: LURatedU | D3: V | E3: Num | F3: S | G3: A2
B4: 高压侧额定电流 | C4: HURatedI | D4: A | E4: Num | F4: M | G4: A2
B5: 低压侧额定电流 | C5: LURatedI | D5: A | E5: Num | F5: M | G5: A2
B6: 额定容量 | C6: RatedCap | D6: kVA | E6: Num | F6: S | G6: A2
B7: 额定频率 | C7: RatedFreq | D7: Hz | E7: Num | F7: R | G7: A2
B8: 相数类型 | C8: PhaseType | E8: Enum | F8: R | G8: D1 | H8: 1. 单相变压器 2. 三相变压器 3. 多相变压器 99. 其他
B9: 接线组别 | C9: WireGroupType | E9: Enum | F9: R | G9: D1 | H9: 1. Y 2. △ 3. yn 99. 其他
B10: 空载电流 | C10: NonLoadI | D10: A | E10: Num | F10: M | G10: A2
B11: 空载损耗 | C11: NonLoadLoss | D11: kW | E11: Num | F11: R | G11: A2
B12: 负载损耗 | C12: LoadLoss | D12: kW | E12: Num | F12: R | G12: A2
B13: 额定变电效率 | C13: RatedTransEff | D13: % | E13: Num | F13: M | G13: A2
B14: 调压范围 | C14: UAdjustRange | D14: % | E14: Numr | F14: M | G14: A6
B15: 阻抗电压 | C15: ImpedanceU | D15: % | E15: Num | F15: R | G15: A2
B16: 绕组型式 | C16: WindingType | E16: Enum | F16: R | G16: D1 | H16: 1. 双绕组变压器 2. 三绕组变压器 3. 自耦电力变压器 99. 其他
B17: 干湿形式 | C17: DryWetType | E17: Enum | F17: R | G17: D1 | H17: 1. 干式 2. 油浸式 99. 其他
B18: 绝缘电阻 | C18: InsulationResistance | D18: Ω | E18: Num | F18: R | G18: A2
B19: 冷却介质类型 | C19: CoolMediumType | E19: Enum | F19: R | G19: D1 | H19: 1. 油浸式变压器 2. 干式变压器 3. 充气式变压器 99. 其他
B20: 冷却方式类型 | C20: CoolMethodType | E20: Enum | F20: R | G20: D1 | H20: 1. 自冷 2. 强迫风冷 3. 蒸发冷却 99. 其他
B21: 绕组材料 | C21: WindingMaterial | E21: Enum | F21: R | G21: D1 | H21: 1. NOMEX纸包无氧扁铜线 2. 铝线 99. 其他
B22: 铁芯材料 | C22: IronCoreMaterial | E22: Enum | F22: R | G22: D1 | H22: 1. 铁氧体磁芯 2. 合金类磁芯 99. 其他
B23: 绝缘材料 | C23: InsulationaMaterial | E23: Enum | F23: R | G23: D1 | H23: 1. 杜邦NOMEX 2. 环氧树脂 3. 玻璃纤维 4. 无机材料 5. 聚酯薄膜 99. 其他
B24: 绝缘材料耐热等级 | C24: InsulationMaterialHeatProofLev | E24: Enum | F24: R | G24: D1 | H24: 1. Y级 2. A级 3. E级 4. B级 5. F级 6. H级 7. C级 99. 其他
B25: 外壳表面防腐处理 | C25: AntisepticType | E25: Enum | F25: R | G25: D1 | H25: 1. 静电喷塑 2. 覆铝锌板 3. 防锈粉末喷涂 99. 其他
B26: 进出线方式 | C26: WireInstallType | E26: Enum | F26: R | G26: D1 | H26: 1. 下进下出 2. 下进上出 3. 上进下出 4. 上进上出 99. 其他
B27: 维护方式 | C27: MaintenanceType | E27: Enum | F27: R | G27: D1 | H27: 1. 前后维护 2. 前维护 3. 后维护 99. 其他
B28: 配套风机台数 | C28: FanNum | D28: 台 | E28: Num | F28: R | G28: A2
B29: 温控仪超温报警门限值 | C29: AlarmTemp | D29: ℃ | E29: Num | F29: M | G29: A2
B30: 安装地点 | C30: InstallSiteType | E30: Enum | F30: S | G30: D1 | H30: 1. 室外 2. 室内 99. 其他
B31: 抗震能力 | C31: SeismicCapacity | E31: Enum | F31: S | G31: D1 | H31: 参考《10抗震设防烈度》
B32: 防护等级 | C32: IPGrade | E32: Str | F32: S | G32: B1 | H32: 参考《11防护等级》
B33: 绝缘等级 | C33: InsulationLev | E33: Enum | F33: M | G33: D1 | H33: 1. Y级 2. A级 3. E级 4. B级 5. F级 6. H级 7. C级 8. N级 9. R级 99. 其他
B34: 防爆等级 | C34: ExplosionProofLev | E34: Enum | F34: M | G34: D1L | H34: 1. I类 2. II类 2.1 IIA类 2.2 IIB类 2.3 IIC类 3. III类 3.1 IIIA类 3.2 IIIB类 3.3 IIIC类 99. 其他
B35: 工作温度范围 | C35: WorkTempRange | D35: ℃ | E35: Numr | F35: M | G35: A6
B36: 工作湿度范围 | C36: WorkRHRange | D36: %RH | E36: Numr | F36: M | G36: A6
B37: 噪声强度 | C37: Noise | D37: dB(A) | E37: Num | F37: M | G37: A2
B38: 是否有高海拔要求 | C38: isHighAltitude | E38: Bool | F38: R | G38: E1 | H38: 0. 无高海拔设计 1. 高海拔专用（＞1000米）
B39: 是否有防盐雾要求 | C39: isSaltFogDefend | E39: Bool | F39: R | G39: E1 | H39: 0. 无防盐雾设计 1. 沿海地区专用
B40: 能效等级 | C40: EEffIndex | E40: Enum | F40: M | G40: D1 | H40: 1. 1级 2. 2级 3. 3级 4. 4级 5. 5级 99. 其他

Sheet 知识库-能耗折算-类
A1: 字典ID | B1: 字典名称 | C1: 字典代码 | D1: 名称 | E1: 字典类型 | F1: 父类字典名称 | G1: 父类字典代码 | H1: 父类名称 | I1: 备注
B2: 能耗折算 | C2: 1 | D2: 电 | E2: 1
C3: 2 | D3: 供冷 | E3: 1
C4: 3 | D4: 供热 | E4: 1
C5: 4 | D5: 自来水 | E5: 1
C6: 5 | D6: 燃气 | E6: 1
C7: 6 | D7: 燃油 | E7: 1
C8: 7 | D8: 蒸汽 | E8: 1
C9: 8 | D9: 热水 | E9: 1
C10: 9 | D10: 汽油 | E10: 1
C11: 10 | D11: 原煤 | E11: 1
C12: 11 | D12: 焦炭 | E12: 1
C13: 12 | D13: 标煤 | E13: 1
C14: 13 | D14: CO2排放 | E14: 1
C15: 14 | D15: 森林面积 | E15: 1
E16: 1
B17: 能源模板 | C17: 1 | D17: 电能 | E17: 1
C18: 2 | D18: 冷量 | E18: 1
C19: 3 | D19: 热量 | E19: 1
C20: 4 | D20: 用水 | E20: 1
C21: 5 | D21: 燃气 | E21: 1
C22: 6 | D22: 燃油 | E22: 1
C23: 7 | D23: 蒸汽 | E23: 1
B25: 分项 | E25: 1
E26: 1
E27: 1
E28: 1

Sheet 知识库-能耗分项-值
A1: 名称 | B1: 代码 | C1: 能源模板节点 | D1: 标准分项类型 | E1: 分项能耗时刻 | F1: 开始时间 | G1: 结束时间 | H1: 分项能耗值

Sheet 知识库-能耗折算-值
A1: 名称 | B1: 代码 | C1: 单位 | D1: 折标煤系数 | E1: 折标煤单位 | F1: 折CO2系数 | G1: 折CO2单位 | H1: 折森林面积系数 | I1: 折森林面积单位 | J1: 备注
A2: 电 | B2: 1 | C2: kWh | D2: =0.326/1000 -> 0.000326 | E2: tce/kWh | F2: =D2*$F$13 -> 0.83456 | G2: kgCO2/kWh | H2: =F2*$H$14 -> 0.0003922432 | I2: ha/kWh | J2: CO2沿用数据字典原系数
A3: 供冷 | B3: 2 | C3: kWh | D3: =0.0815/1000 -> 8.15e-05 | E3: tce/kWh | F3: 0.20864 | G3: kgCO2/kWh | H3: 9.80608e-05 | I3: ha/kWh
A4: 供热 | B4: 3 | C4: kWh | D4: =0.1228/1000 -> 0.0001228 | E4: tce/kWh | F4: 0.314368 | G4: kgCO2/kWh | H4: 0.00014775296 | I4: ha/kWh
A5: 自来水 | B5: 4 | C5: m3 | D5: =0.0857/1000 -> 8.57e-05 | E5: tce/m3 | F5: 0.219392 | G5: kgCO2/m3 | H5: 0.00010311424 | I5: ha/m3
A6: 燃气 | B6: 5 | C6: m3 | D6: =1.33/1000 -> 0.00133 | E6: tce/m3 | F6: 3.4048 | G6: kgCO2/m3 | H6: 0.001600256 | I6: ha/m3
A7: 燃油 | B7: 6 | C7: L | D7: =1.224/1000 -> 0.001224 | E7: tce/L | F7: 3.13344 | G7: kgCO2/L | H7: 0.0014727168 | I7: ha/L | J7: CO2系数：IPCC
A8: 蒸汽 | B8: 7 | C8: ton | D8: =0.1286 -> 0.1286 | E8: tce/t | F8: 329.216 | G8: kgCO2/t | H8: 0.15473152 | I8: ha/t
A9: 热水 | B9: 8 | C9: m3 | D9: =D5 -> 8.57e-05 | E9: tce/m3 | F9: 0.219392 | G9: kgCO2/m3 | H9: 0.00010311424 | I9: ha/m3
A10: 汽油 | B10: 9 | C10: L | D10: =1.067/1000 -> 0.001067 | E10: tce/L | F10: 2.73152 | G10: kgCO2/L | H10: 0.0012838144 | I10: ha/L | J10: CO2：EDMC建议排放系数
A11: 原煤 | B11: 10 | C11: ton | D11: 0.7143 | E11: tce/t | F11: 1828.608 | G11: kgCO2/t | H11: 0.85944576 | I11: ha/t | J11: CO2系数：IPCC
A12: 焦炭 | B12: 11 | C12: ton | D12: 0.9714 | E12: tce/t | F12: 2486.784 | G12: kgCO2/t | H12: 1.16878848 | I12: ha/t | J12: CO2系数：IPCC
A13: 标煤 | B13: 12 | C13: tce | D13: 1 | E13: tce/tce | F13: =2.56*1000 -> 2560 | G13: kgCO2/tce | H13: 1.2032 | I13: ha/tce | J13: CO2系数：IPCC
A14: CO2排放 | B14: 13 | C14: kgCO2 | D14: =1/F13 -> 0.000390625 | E14: tce/kgCO2 | F14: 1 | G14: kgCO2/kgCO2 | H14: 0.00047 | I14: ha/kgCO2 | J14: 森林系数沿用数据字典原系数
A15: 森林面积 | B15: 14 | C15: ha | D15: =1/H14*D14 -> 0.8311170213 | E15: tce/ha | F15: =1/H14 -> 2127.659574 | G15: kgCO2/ha | H15: 1 | I15: ha/ha | J15: 年

Sheet 对象
A1: 表 | B1: 信息点 | C1: 信息点编码 | D1: 单位 | E1: 类型 | F1: 优先级 | G1: 输入方式 | H1: 字典 | I1: 分级标签 | K1: 备注
A2: 项目 | B2: 项目ID | C2: ProjID | E2: Str | F2: S | G2: X
B3: 项目名称 | C3: ProjName | E3: Str | F3: S | G3: X
B4: 项目本地编码 | C4: ProjLocalID | E4: Str | F4: M | G4: B1 | I4: 基本信息
B5: 项目本地名称 | C5: ProjLocalName | E5: Str | F5: M | G5: B1
B6: 省份 | C6: Province | E6: Enum | F6: S | G6: D1 | H6: 见《全国省市区编号及地理信息》 | I6: 地理位置
B7: 城市 | C7: City | E7: Enum | F7: S | G7: D1 | H7: 见《全国省市区编号及地理信息》
B8: 市内区域 | C8: UrbanZone | E8: Enum | F8: M | G8: D1 | H8: 见《全国省市区编号及地理信息》
B9: 项目地址 | C9: Address | E9: Str | F9: R | G9: B1
B10: 气候区 | C10: ClimateZone | E10: Enum | F10: M | G10: D1L | H10: 见《建筑节能气候分区标准》 | K10: 参考《全国省市区编号及地理信息》对应值
B11: 城市发展水平 | C11: UrbanDevpLev | E11: Enum | F11: R | G11: D1L | H11: 见《城市发展水平分级》 | K11: 参考《全国省市区编号及地理信息》对应值
B12: 经度 | C12: Longitude | D12: ° | E12: Num | F12: R | G12: A2 | K12: 参考《全国省市区编号及地理信息》对应值
B13: 纬度 | C13: Latitude | D13: ° | E13: Num | F13: R | G13: A2 | K13: 参考《全国省市区编号及地理信息》对应值
B14: 海拔 | C14: Altitude | D14: m | E14: Num | F14: R | G14: A2
B15: 抗震设防烈度 | C15: SFI | E15: Enum | F15: R | G15: D1 | H15: 见《抗震设防烈度》 | K15: 参考《全国省市区编号及地理信息》对应值
B16: 污秽等级 | C16: PollutionLevel | E16: Enum | F16: R | G16: D1 | H16: 见《污秽等级》 | K16: 变电所的污源性质和严重程度
B17: 项目总建筑面积 | C17: ProjArea | D17: m2 | E17: Num | F17: S | G17: A2 | I17: 项目信息 | K17: 各建筑“建筑面积”之和
B18: 项目占地面积 | C18: ProjCoverArea | D18: m2 | E18: Num | F18: R | G18: A2 | K18: 红线面积
B19: 项目总地上面积 | C19: ProjFloorArea | D19: m2 | E19: Num | F19: M | G19: A2 | K19: 各建筑“地上面积”之和
B20: 项目总地下面积 | C20: ProjUnderArea | D20: m2 | E20: Num | F20: M | G20: A2 | K20: 各建筑“地下面积”之和
B21: 项目功能类型 | C21: ProjFuncType | E21: Enum | F21: S | G21: D1L | H21: 见《建筑功能类型》
B22: 项目照片 | C22: ProjPic | E22: Attachment | F22: R | G22: F2
B23: 项目简介 | C23: ProjIntro | E23: Str | F23: R | G23: B2
B24: 所属集团 | C24: Group | E24: Str | F24: M | G24: B1 | I24: 商业信息
B25: 业主 | C25: Owner | E25: Str | F25: R | G25: B1
B26: 设计方 | C26: Designer | E26: Str | F26: R | G26: B1
B27: 施工方 | C27: Constructor | E27: Str | F27: R | G27: B1
B28: 物业公司 | C28: Property | E28: Str | F28: R | G28: B1
B29: 竣工日期 | C29: BeCompletedDate | E29: Dtime | F29: R | G29: C5
B30: 开业日期 | C30: BusinessOpeningTime | E30: Dtime | F30: R | G30: C5
B31: 移交日期 | C31: HandoverDate | E31: Dtime | F31: R | G31: C5
B32: 集团管理分区 | C32: GroupManageZone | E32: Str | F32: R | G32: B1
B33: 集团经营分区 | C33: GroupOperateZone | E33: Str | F33: R | G33: B1
A35: 建筑 | B35: 建筑体ID | C35: BuildID | E35: Str | F35: S | G35: X
B36: 建筑体名称 | C36: BuildName | E36: Str | F36: S | G36: X
B37: 建筑本地编码 | C37: BuildLocalID | E37: Str | F37: M | G37: B1 | I37: 基本信息
B38: 建筑本地名称 | C38: BuildLocalName | E38: Str | F38: M | G38: B1
B39: 建筑年代 | C39: BuildAge | E39: DTime | F39: M | G39: C5 | I39: 建筑信息 | J39: 建筑类型
B40: 建筑功能类型 | C40: BuildFuncType | E40: Enum | F40: S | G40: D1L | H40: 见《建筑功能类型》
B41: 空调类型 | C41: ACType | E41: Enum | F41: M | G41: D1 | H41: 1. 中央空调系统 2. 分散空调系统 3. 混合系统 99. 其他 | K41: 混合系统：中央空调负责面积或分散空调负责面积至少占空调总面积30%的情况
B42: 空调冷源类型 | C42: CoolType | E42: Menum | F42: M | G42: D2 | H42: 1. 冷水机组 2. 空气源热泵 3. 地源热泵 4. 水源热泵 5. 区域供冷 6. 多联机 7. 分体机 8. 冰蓄冷 9. 水蓄冷 99. 其他 （可多选）
B43: 采暖类型 | C43: HeatType | E43: Enum | F43: M | G43: D1 | H43: 1. 城市热网系统 2. 锅炉系统 3. 热泵系统 99. 其他
B44: 照明类型 | C44: LightType | E44: MEnum | F44: M | G44: D2 | H44: 1. LED灯 2. 白炽灯 3. 荧光灯 99. 其他 （可多选）
B45: 绿建等级 | C45: GreenBuildLev | E45: Enum | F45: M | G45: D1 | H45: 1. 无 2. 一星级 3. 二星级 3. 三星级 99. 其他
B46: 文字简介 | C46: Intro | E46: Str | F46: R | G46: B2
B47: 建筑图片 | C47: Pic | E47: Attachment | F47: R | G47: F2
B48: 单位面积设计冷量 | C48: DesignCoolLoadIndex | D48: W/m2 | E48: Num | F48: R | G48: A2 | J48: 设计指标
B49: 单位面积设计热量 | C49: DesignHeatLoadIndex | D49: W/m2 | E49: Num | F49: R | G49: A2
B50: 单位面积配电设计容量 | C50: DesignElecLoadIndex | D50: W/m2 | E50: Num | F50: R | G50: A2
B51: 建筑常驻人数 | C51: PermanentPeopleNum | D51: 人 | E51: Num | F51: R | G51: A2
B52: 建筑结构类型 | C52: StructType | E52: Enum | F52: M | G52: D1 | H52: 1. 钢筋混凝土结构 2. 砌体结构 3. 钢结构 4. 木结构 99. 其他 | J52: 结构参数
B53: 抗震设防烈度 | C53: SFI | E53: Enum | F53: M | G53: D1 | H53: 1. 6度 2. 7度 3. 8度 4. 9度 99. 其他 | K53: 参考《抗震设防烈度》对应值
B54: 设计基本地震加速度值 | C54: DesignSeismA | D54: 重力加速度g | E54: Num | F54: M | G54: A2 | K54: 参考《抗震设防烈度》对应值
B55: 建筑体形系数 | C55: ShapeCoeff | D55: 1/m | E55: Num | F55: M | G55: A2
B56: 东向窗墙比 | C56: EastWindowWallRatio | E56: Num | F56: M | G56: A1
B57: 南向窗墙比 | C57: SouthWindowWallRatio | E57: Num | F57: M | G57: A1
B58: 西向窗墙比 | C58: WestWindowWallRatio | E58: Num | F58: M | G58: A1
B59: 北向窗墙比 | C59: NorthWindowWallRatio | E59: Num | F59: M | G59: A1
B60: 屋顶窗墙比 | C60: RoofWindowWallRatio | E60: Num | F60: M | G60: A1
B61: 建筑朝向 | C61: BuildDirect | E61: Enum | F61: M | G61: D1 | H61: 见《方向代码》
B62: 保温类型 | C62: InsulateType | E62: Enum | F62: M | G62: D1 | H62: 1. 无保温 2. 内保温 3. 外保温 4. 夹层保温 99. 其他
B63: 耐火等级 | C63: FireResistanceLev | E63: Enum | F63: M | G63: D1 | H63: 1. 一级 2. 二级 3. 三级 4. 四级 99. 其他 | K63: 一级耐火等级建筑：主要建筑构件全部为不燃烧性；二级耐火等级建筑：主要建筑构件除吊顶为难燃烧性，其他为不燃烧性；三级耐火等级建筑：屋顶承重构件为难燃性；四级耐火等级建筑：防火墙为不燃烧性，其他为难燃性和可燃性
B64: 面积树 | C64: AreaTree | E64: Tree | F64: R | G64: H | J64: 面积信息 | K64: 参考《推荐分项模型》A0
B65: 建筑面积 | C65: GFA | D65: m2 | E65: Num | F65: S | G65: A2
B66: 地上面积 | C66: FloorArea | D66: m2 | E66: Num | F66: M | G66: A2
B67: 地下面积 | C67: UnderArea | D67: m2 | E67: Num | F67: M | G67: A2
B68: 建筑总层数 | C68: TotLayer | D68: 层 | E68: Num | F68: S | G68: A2
B69: 地上层数 | C69: FloorLayer | D69: 层 | E69: Num | F69: M | G69: A2
B70: 地下层数 | C70: UnderLayer | D70: 层 | E70: Num | F70: M | G70: A2
B71: 建筑总高度 | C71: TotHeight | D71: m | E71: Num | F71: S | G71: A2
B72: 建筑占地面积 | C72: CoverArea | D72: m2 | E72: Num | F72: M | G72: A2
B73: 图纸 | C73: Drawing | E73: Attachment | F73: R | G73: F2 | I73: 建筑文档 | K73: 设计图纸；竣工图纸
B74: 档案 | C74: Archive | E74: Attachment | F74: R | G74: F2
B75: 建筑模拟模型文件 | C75: SimulationModel | E75: Attachment | F75: R | G75: F2
A78: TDTF变压器 | B78: 高压侧额定电压 | C78: HURatedU | D78: kV | E78: Num | F78: S | G78: A2 | I78: 技术参数
B79: 低压侧额定电压 | C79: LURatedU | D79: V | E79: Num | F79: S | G79: A2
B80: 高压侧额定电流 | C80: HURatedI | D80: A | E80: Num | F80: M | G80: A2
B81: 低压侧额定电流 | C81: LURatedI | D81: A | E81: Num | F81: M | G81: A2
B82: 额定容量 | C82: RatedCap | D82: kVA | E82: Num | F82: S | G82: A2
B83: 额定频率 | C83: RatedFreq | D83: Hz | E83: Num | F83: R | G83: A2
B84: 相数类型 | C84: PhaseType | E84: Enum | F84: R | G84: D1 | H84: 1. 单相变压器 2. 三相变压器 3. 多相变压器 99. 其他
B85: 接线组别 | C85: WireGroupType | E85: Enum | F85: R | G85: D1 | H85: 1. Y 2. △ 3. yn 99. 其他
B86: 空载电流 | C86: NonLoadI | D86: A | E86: Num | F86: M | G86: A2
B87: 空载损耗 | C87: NonLoadLoss | D87: kW | E87: Num | F87: R | G87: A2
B88: 负载损耗 | C88: LoadLoss | D88: kW | E88: Num | F88: R | G88: A2
B89: 额定变电效率 | C89: RatedTransEff | D89: % | E89: Num | F89: M | G89: A2
B90: 调压范围 | C90: UAdjustRange | D90: % | E90: Numr | F90: M | G90: A6
B91: 阻抗电压 | C91: ImpedanceU | D91: % | E91: Num | F91: R | G91: A2
B92: 绕组型式 | C92: WindingType | E92: Enum | F92: R | G92: D1 | H92: 1. 双绕组变压器 2. 三绕组变压器 3. 自耦电力变压器 99. 其他
B93: 干湿形式 | C93: DryWetType | E93: Enum | F93: R | G93: D1 | H93: 1. 干式 2. 油浸式 99. 其他
B94: 绝缘电阻 | C94: InsulationResistance | D94: Ω | E94: Num | F94: R | G94: A2
B95: 冷却介质类型 | C95: CoolMediumType | E95: Enum | F95: R | G95: D1 | H95: 1. 油浸式变压器 2. 干式变压器 3. 充气式变压器 99. 其他
B96: 冷却方式类型 | C96: CoolMethodType | E96: Enum | F96: R | G96: D1 | H96: 1. 自冷 2. 强迫风冷 3. 蒸发冷却 99. 其他
B97: 绕组材料 | C97: WindingMaterial | E97: Enum | F97: R | G97: D1 | H97: 1. NOMEX纸包无氧扁铜线 2. 铝线 99. 其他
B98: 铁芯材料 | C98: IronCoreMaterial | E98: Enum | F98: R | G98: D1 | H98: 1. 铁氧体磁芯 2. 合金类磁芯 99. 其他
B99: 绝缘材料 | C99: InsulationaMaterial | E99: Enum | F99: R | G99: D1 | H99: 1. 杜邦NOMEX 2. 环氧树脂 3. 玻璃纤维 4. 无机材料 5. 聚酯薄膜 99. 其他
B100: 绝缘材料耐热等级 | C100: InsulationMaterialHeatProofLev | E100: Enum | F100: R | G100: D1 | H100: 1. Y级 2. A级 3. E级 4. B级 5. F级 6. H级 7. C级 99. 其他
B101: 外壳表面防腐处理 | C101: AntisepticType | E101: Enum | F101: R | G101: D1 | H101: 1. 静电喷塑 2. 覆铝锌板 3. 防锈粉末喷涂 99. 其他
B102: 进出线方式 | C102: WireInstallType | E102: Enum | F102: R | G102: D1 | H102: 1. 下进下出 2. 下进上出 3. 上进下出 4. 上进上出 99. 其他
B103: 维护方式 | C103: MaintenanceType | E103: Enum | F103: R | G103: D1 | H103: 1. 前后维护 2. 前维护 3. 后维护 99. 其他
B104: 配套风机台数 | C104: FanNum | D104: 台 | E104: Num | F104: R | G104: A2
B105: 温控仪超温报警门限值 | C105: AlarmTemp | D105: ℃ | E105: Num | F105: M | G105: A2
B106: 安装地点 | C106: InstallSiteType | E106: Enum | F106: S | G106: D1 | H106: 1. 室外 2. 室内 99. 其他
B107: 抗震能力 | C107: SeismicCapacity | E107: Enum | F107: S | G107: D1 | H107: 参考《10抗震设防烈度》
B108: 防护等级 | C108: IPGrade | E108: Str | F108: S | G108: B1 | H108: 参考《11防护等级》
B109: 绝缘等级 | C109: InsulationLev | E109: Enum | F109: M | G109: D1 | H109: 1. Y级 2. A级 3. E级 4. B级 5. F级 6. H级 7. C级 8. N级 9. R级 99. 其他
B110: 防爆等级 | C110: ExplosionProofLev | E110: Enum | F110: M | G110: D1L | H110: 1. I类 2. II类 2.1 IIA类 2.2 IIB类 2.3 IIC类 3. III类 3.1 IIIA类 3.2 IIIB类 3.3 IIIC类 99. 其他
B111: 工作温度范围 | C111: WorkTempRange | D111: ℃ | E111: Numr | F111: M | G111: A6
B112: 工作湿度范围 | C112: WorkRHRange | D112: %RH | E112: Numr | F112: M | G112: A6
B113: 噪声强度 | C113: Noise | D113: dB(A) | E113: Num | F113: M | G113: A2
B114: 是否有高海拔要求 | C114: isHighAltitude | E114: Bool | F114: R | G114: E1 | H114: 0. 无高海拔设计 1. 高海拔专用（＞1000米）
B115: 是否有防盐雾要求 | C115: isSaltFogDefend | E115: Bool | F115: R | G115: E1 | H115: 0. 无防盐雾设计 1. 沿海地区专用
B116: 能效等级 | C116: EEffIndex | E116: Enum | F116: M | G116: D1 | H116: 1. 1级 2. 2级 3. 3级 4. 4级 5. 5级 99. 其他
B117: 高压侧A相电压 | C117: HUAPhaseU | D117: kV | E117: Inst | F117: S | G117: L | I117: 运行参数 | J117: 瞬时状态
B118: 高压侧B相电压 | C118: HUBPhaseU | D118: kV | E118: Inst | F118: S | G118: L
B119: 高压侧C相电压 | C119: HUCPhaseU | D119: kV | E119: Inst | F119: S | G119: L
B120: 高压侧电压 | C120: HUU | D120: kV | E120: Inst | F120: S | G120: L
B121: 高压侧A相电流 | C121: HUAPhaseI | D121: A | E121: Inst | F121: M | G121: L
B122: 高压侧B相电流 | C122: HUBPhaseI | D122: A | E122: Inst | F122: M | G122: L
B123: 高压侧C相电流 | C123: HUCPhaseI | D123: A | E123: Inst | F123: M | G123: L
B124: 高压侧电流 | C124: HUI | D124: A | E124: Inst | F124: M | G124: L
B125: 低压侧A相电压 | C125: LUAPhaseU | D125: V | E125: Inst | F125: S | G125: L
B126: 低压侧B相电压 | C126: LUBPhaseU | D126: V | E126: Inst | F126: S | G126: L
B127: 低压侧C相电压 | C127: LUCPhaseU | D127: V | E127: Inst | F127: S | G127: L
B128: 低压侧电压 | C128: LUU | D128: V | E128: Inst | F128: S | G128: L
B129: 低压侧A相电流 | C129: LUAPhaseI | D129: A | E129: Inst | F129: M | G129: L
B130: 低压侧B相电流 | C130: LUBPhaseI | D130: A | E130: Inst | F130: M | G130: L
B131: 低压侧C相电流 | C131: LUCPhaseI | D131: A | E131: Inst | F131: M | G131: L
B132: 低压侧电流 | C132: LUI | D132: A | E132: Inst | F132: M | G132: L
B133: 低压侧A相有功功率 | C133: LUAPhaseActiveP | D133: kW | E133: Inst | F133: M | G133: L
B134: 低压侧B相有功功率 | C134: LUBPhaseActiveP | D134: kW | E134: Inst | F134: M | G134: L
B135: 低压侧C相有功功率 | C135: LUCPhaseActiveP | D135: kW | E135: Inst | F135: M | G135: L
B136: 低压侧总有功功率 | C136: LUTotActiveP | D136: kW | E136: Inst | F136: S | G136: L
B137: 低压侧A相无功功率 | C137: LUAPhaseReactiveP | D137: kVar | E137: Inst | F137: R | G137: L
B138: 低压侧B相无功功率 | C138: LUBPhaseReactiveP | D138: kVar | E138: Inst | F138: R | G138: L
B139: 低压侧C相无功功率 | C139: LUCPhaseReactiveP | D139: kVar | E139: Inst | F139: R | G139: L
B140: 低压侧总无功功率 | C140: LUTotReactiveP | D140: kVar | E140: Inst | F140: M | G140: L
B141: 低压侧A相视在功率 | C141: LUAPhaseApparentP | D141: kVA | E141: Inst | F141: M | G141: L
B142: 低压侧B相视在功率 | C142: LUBPhaseApparentP | D142: kVA | E142: Inst | F142: M | G142: L
B143: 低压侧C相视在功率 | C143: LUCPhaseApparentP | D143: kVA | E143: Inst | F143: M | G143: L
B144: 低压侧总视在功率 | C144: LUTotApparentP | D144: kVA | E144: Inst | F144: S | G144: L
B145: 低压侧A相功率因数 | C145: LUAPhasePFactor | E145: Inst | F145: M | G145: L
B146: 低压侧B相功率因数 | C146: LUBPhasePFactor | E146: Inst | F146: M | G146: L
B147: 低压侧C相功率因数 | C147: LUCPhasePFactor | E147: Inst | F147: M | G147: L
B148: 低压侧总功率因数 | C148: LUTotPFactor | E148: Inst | F148: S | G148: L
B149: A相线圈温度 | C149: APhaseCoilTemp | D149: ℃ | E149: Inst | F149: M | G149: L
B150: B相线圈温度 | C150: BPhaseCoilTemp | D150: ℃ | E150: Inst | F150: M | G150: L
B151: C相线圈温度 | C151: CPhaseCoilTemp | D151: ℃ | E151: Inst | F151: M | G151: L
B152: 配套风机启停状态 | C152: FanStatus | E152: Boolv | F152: M | G152: L | H152: 0. 关闭 1. 运行
B153: 变压器噪声 | C153: TransNoise | D153: dB(A) | E153: Inst | F153: R | G153: L
B154: 通讯状态 | C154: CommunicationStatus | E154: Enumv | F154: M | G154: L | H154: 1. 正常 2. 故障 3. 断线 99. 其他
B155: 高压侧负载功率 | C155: HUP | D155: kW | E155: Inst | F155: R | G155: L
B156: 低压侧负载功率 | C156: LUP | D156: kW | E156: Inst | F156: R | G156: L
B157: 变压效率 | C157: TransEff | D157: % | E157: Inst | F157: R | G157: M | J157: 关键指标
B158: 变压损耗 | C158: TransLoss | D158: kW | E158: Inst | F158: R | G158: M
B159: 高压侧负载率 | C159: HULoadRate | D159: % | E159: Inst | F159: R | G159: M
B160: 低压侧负载率 | C160: LULoadRate | D160: % | E160: Inst | F160: R | G160: M
B161: 累计运行时间 | C161: AccRunTime | D161: h | E161: Acc | F161: S | G161: M | J161: 累计指标
B162: 开启时间计时 | C162: OpenTimeCount | D162: h | E162: Acc | F162: R | G162: M
B163: 关闭时间计时 | C163: CloseTimeCount | D163: h | E163: Acc | F163: R | G163: M
I164: 设定参数
B165: 超温预警 | C165: OverTempPreAlarm | E165: Boolp | F165: S | G165: L | H165: 0. 正常 1. 报警 | I165: 报警消息
B166: 超高温报警 | C166: OverTempAlarm | E166: Boolp | F166: S | G166: L | H166: 0. 正常 1. 报警
B167: 风机故障 | C167: FanErrorAlarm | E167: Boolp | F167: S | G167: L | H167: 0. 正常 1. 报警

Sheet 关系的定义
A1: 图名称 | B1: 图编码 | C1: 关系名称 | D1: 关系编码 | E1: 关系方向 | F1: 起点对象 | G1: 起点编码 | H1: 终点对象 | I1: 终点编码 | J1: 属性 | K1: 备注
A2: 建筑从属关系 | B2: ArchSubset | C2: 项目下的建筑体 | D2: Pj2Bd | E2: 1 | F2: 项目 | H2: 建筑体 | K2: 这里只是关系，没有给出具体的值，给出值后还可以形成值的知识库
C3: 建筑体下的楼层 | D3: Bd2Fl | E3: 1 | F3: 建筑体 | H3: 楼层
C4: 建筑体下的竖井 | D4: Bd2Sh | E4: 1 | F4: 建筑体 | H4: 竖井
C5: 建筑体下的业务空间 | D5: Bd2Sp | E5: 1 | F5: 建筑体 | H5: 业务空间
C6: 楼层下的业务空间 | D6: Fl2Sp | E6: 1 | F6: 楼层 | H6: 业务空间
C7: 竖井下的业务空间 | D7: Sh2Sp | E7: 1 | F7: 竖井 | H7: 业务空间
A9: 机电从属关系 | B9: MechSubset | C9: 项目下的系统 | D9: Pj2Sy | E9: 1 | F9: 项目 | G9: project | H9: 系统 | I9: system
C10: 项目下的设备设施 | D10: Pj2Eq | E10: 1 | F10: 项目 | H10: 设备设施
C11: 系统下的设备设施 | D11: Sy2Eq | E11: 1 | F11: 系统 | H11: 设备设施
C12: 设备设施下的部件 | D12: Eq2Ec | E12: 1 | F12: 设备设施 | H12: 部件

Sheet 图数据结构-关系的值
A1: 暂不考虑

Sheet 业务
A1: 表 | B1: 信息点 | C1: 信息点编码 | D1: 单位 | E1: 类型 | F1: 优先级 | G1: 输入方式 | H1: 字典 | I1: 分级标签 | K1: 备注
A2: 报警 | B2: 主键 | C2: id | E2: varchar(20) | H2: 主键，报警id
B3: 报警时间 | C3: alarm_time | E3: datetime | H3: 报警时间
B4: 项目 | C4: project_id | E4: varchar(20) | H4: 项目id
B5: 报警定义ID | C5: alarm_definition_id | E5: varchar(20) | H5: 报警定义id
B6: 报警名称 | C6: alarm_name | E6: varchar(20) | H6: 报警名称
B7: 报警描述 | C7: alarm_description | E7: varchar(30) | H7: 报警描述
B8: 报警级别 | C8: alarm_level | E8: int(1) | H8: 报警级别；1：一般；2：较重；3：严重
B9: 报警类型 | C9: alarm_type_id | E9: varchar(20) | H9: 报警类型id
B10: 子系统 | C10: sub_system_code | E10: varchar(10) | H10: 子系统编码
B11: 设备类型 | C11: obj_category | E11: varchar(10) | H11: 设备类型编码、空间功能类型
B12: 报警对象 | C12: obj_id | E12: varchar(30) | H12: 报警对象id
B13: 报警对象编码 | C13: obj_code | E13: varchar(10) | H13: 报警对象编码
B14: 报警对象名称 | C14: obj_name | E14: varchar(20) | H14: 报警对象名称
B15: 建筑ID | C15: build_id | E15: varchar(30) | H15: 建筑id
B16: 建筑名称 | C16: build_name | E16: varchar(30) | H16: 建筑名称
B17: 楼层ID | C17: floor_id | E17: varchar(30) | H17: 楼层id
B18: 楼层名称 | C18: floor_name | E18: varchar(30) | H18: 楼层名称
B19: 空间ID | C19: space_id | E19: varchar(30) | H19: 空间id
B20: 空间名称 | C20: space_name | E20: varchar(30) | H20: 空间名称
B21: 设备参数 | C21: equip_parameter_code | E21: varchar(10) | H21: 设备参数编码
B22: 设备参数名称 | C22: equip_parameter_name | E22: varchar(30) | H22: 设备参数名称
B23: 报警条件 | C23: alarm_condition | E23: int(1) | H23: 报警条件
B24: 报警参数数据源 | C24: data_source | E24: varchar(20) | H24: 报警参数数据源
B25: 手自动状态 | C25: auto_status | E25: int(1) | H25: 手自动状态0. 手动 1. 自动
B26: 运行状态 | C26: run_status | E26: int(1) | H26: 运行状态0. 停止 1. 运行
B27: 报警条件类型 | C27: condition_type | E27: int(1) | H27: 报警条件类型；1：区间；2：非区间
B28: 上限 | C28: upper_limit_value | E28: double(20,6) | H28: 上限
B29: 下限 | C29: floor_limit_value | E29: double(20,6) | H29: 下限
B30: 非区间上限类型 | C30: upper_limit_type | E30: int(1) | H30: 非区间上限类型；1：大于；2：大于等于
B31: 非区间下限类型 | C31: floor_limit_type | E31: int(1) | H31: 非区间下限类型；1：小于；2：小于等于
B32: 报警时间段（开始） | C32: alarm_start_time | E32: varchar(10) | H32: 报警时间段 开始时间 00:00
B33: 报警时间段（结束） | C33: alarm_end_time | E33: varchar(10) | H33: 报警时间段 结束时间 23:59
B34: 报警值 | C34: value | E34: double(20,6) | H34: 报警值
B35: 报警判定类型 | C35: alarm_class | E35: int(1) | H35: 报警判定类型；1：设备测试；2：真实故障；3：误报
A37: 报警规则 | B37: 主键 | C37: id | E37: varchar(20) | H37: 主键，报警id
B38: 项目 | C38: project_id | E38: varchar(20) | H38: 项目id
B39: 报警定义ID | C39: alarm_definition_id | E39: varchar(20) | H39: 报警定义id
B40: 报警名称 | C40: alarm_name | E40: varchar(20) | H40: 报警名称
B41: 报警描述 | C41: alarm_description | E41: varchar(30) | H41: 报警描述
B42: 报警级别 | C42: alarm_level | E42: int(1) | H42: 报警级别；1：一般；2：较重；3：严重
B43: 报警类型 | C43: alarm_type_id | E43: varchar(20) | H43: 报警类型id
B44: 子系统 | C44: sub_system_code | E44: varchar(10) | H44: 子系统编码
B45: 设备类型 | C45: obj_category | E45: varchar(10) | H45: 设备类型编码、空间功能类型
B46: 报警对象 | C46: obj_id | E46: varchar(30) | H46: 报警对象id
B47: 报警对象编码 | C47: obj_code | E47: varchar(10) | H47: 报警对象编码
B48: 报警对象名称 | C48: obj_name | E48: varchar(20) | H48: 报警对象名称
B49: 建筑ID | C49: build_id | E49: varchar(30) | H49: 建筑id
B50: 建筑名称 | C50: build_name | E50: varchar(30) | H50: 建筑名称
B51: 楼层ID | C51: floor_id | E51: varchar(30) | H51: 楼层id
B52: 楼层名称 | C52: floor_name | E52: varchar(30) | H52: 楼层名称
B53: 空间ID | C53: space_id | E53: varchar(30) | H53: 空间id
B54: 空间名称 | C54: space_name | E54: varchar(30) | H54: 空间名称
B55: 设备参数 | C55: equip_parameter_code | E55: varchar(10) | H55: 设备参数编码
B56: 设备参数名称 | C56: equip_parameter_name | E56: varchar(30) | H56: 设备参数名称
B57: 报警条件 | C57: alarm_condition | E57: int(1) | H57: 报警条件
B58: 报警参数数据源 | C58: data_source | E58: varchar(20) | H58: 报警参数数据源
B59: 手自动状态 | C59: auto_status | E59: int(1) | H59: 手自动状态0. 手动 1. 自动
B60: 运行状态 | C60: run_status | E60: int(1) | H60: 运行状态0. 停止 1. 运行
B61: 报警条件类型 | C61: condition_type | E61: int(1) | H61: 报警条件类型；1：区间；2：非区间
B62: 上限 | C62: upper_limit_value | E62: double(20,6) | H62: 上限
B63: 下限 | C63: floor_limit_value | E63: double(20,6) | H63: 下限
B64: 非区间上限类型 | C64: upper_limit_type | E64: int(1) | H64: 非区间上限类型；1：大于；2：大于等于
B65: 非区间下限类型 | C65: floor_limit_type | E65: int(1) | H65: 非区间下限类型；1：小于；2：小于等于
B66: 报警时间段（开始） | C66: alarm_start_time | E66: varchar(10) | H66: 报警时间段 开始时间 00:00
B67: 报警时间段（结束） | C67: alarm_end_time | E67: varchar(10) | H67: 报警时间段 结束时间 23:59
B68: 持续时长 | C68: alarm_duration_time | E68: int(1) | H68: 报警持续时长，单位秒 0；60；120；240
B69: 是否应用到全部设备类型 | C69: use_all_category | E69: int(1) | H69: 是否应用到全部设备类型 1：是；0：否
B70: 是否重点关注报警 | C70: focus_alarm | E70: int(1) | H70: 是否重点关注报警 1：是；0：否
B71: 隔离状态 | C71: isolation_status | E71: int(1) | H71: 隔离状态；1：生效/不隔离；0：不生效/隔离；默认1
B72: 创建时间 | C72: create_time | E72: datetime
B73: 更新时间 | C73: update_time | E73: datetime
A75: 报警处理 | B75: 主键 | C75: id | E75: varchar(20) | H75: 主键，报警id
B76: 报警处理时间 | C76: alarm_process_time | E76: datetime | H76: 报警处理时间
B77: 处理状态 | C77: status | E77: int(1) | H77: 状态 1:未处理；2.处理中; 3:已处理；4:已恢复
B78: 报警时间 | C78: alarm_time | E78: datetime | H78: 报警时间
B79: 报警恢复时间 | C79: recover_time | E79: datetime | H79: 报警恢复时间
A81: 工单文件 | B81: 主键 | C81: id | E81: varchar(20)
B82: 工单内容 | C82: file | E82: Attachment
A84: 工单 | B84: 【项目id】 | H84: project_id:"***"
B85: 【项目】 | H85: 显示项目实际名称，如泰康金融大厦、泰康国际大厦
B86: 【工单来源类型】 | H86: 1-正常创建2-工单计划3-报修转工单，order_from_type":"***"
B87: 【工单来源id】 | H87: 工单计划id或者报修id，"order_from_id":"***"
B88: 【工单id】 | H88: order_id:"***"
B89: 【工单类型】 | H89: order_type:"***"
B90: 【工单名称】 | H90: wo_name:"***"
B91: 【工单编号】 | H91: 项目ID-工作类型ID-年月日-001
B92: 【时间类型】 | H92: temp-临时、plan-计划，"execute_type":"***"
B93: 【工作类型】 | H93: 分为维修、巡检、维保、运行这四种类型
B94: 【工单状态】 | H94: 分为按时完成、延期完成、异常结束、审核中、执行中、未开始、删除、抢单中、指派中
B95: 【工作事项】 | H95: 工单的各个工作事项的名称拼接后的字段
B96: 【工单概述】 | H96: summary:"***"，保存工单时将事项名称连接起来的字符串，用"、"隔开
B97: 【工单专业】 | H97: 创建工单时，选择的工单专业
B98: 【工单相关对象大类id】 | H98: obj_class_ids:["***","***"]
B99: 【工单相关对象id】 | H99: obj_ids:["***","***"]
H100: 【创建时间,yyyyMMddhhmmss】
H101: 【要求开始时间,yyyyMMddhhmmss】
H102: 【要求结束时间,yyyyMMddhhmmss】
H103: 【实际接单时间】
H104: 【实际完成时间,yyyyMMddhhmmss】
H105: 【关闭时间,yyyyMMddhhmmss】
H106: 【专业】
H107: 【创建人id】
H108: 【参与人】
H109: 【执行人】
A112: 组织
A115: 权限
A118: 人员
A121: 部门
A124: 岗位
A127: 账号
A129: 排班
A131: 考勤

Sheet 工单
A1: 表 | B1: 信息点 | C1: 信息点编码 | D1: 单位 | E1: 类型 | F1: 优先级 | G1: 输入方式 | H1: 字典 | I1: 分级标签 | K1: 备注
A2: 工单文件 | B2: 主键 | C2: id | E2: varchar(20)
B3: 工单内容 | C3: file | E3: Attachment
A5: 工单 | B5: 【项目id】 | H5: project_id:"***"
B6: 【项目】 | H6: 显示项目实际名称，如泰康金融大厦、泰康国际大厦
B7: 【工单来源类型】 | H7: 1-正常创建2-工单计划3-报修转工单，order_from_type":"***"
B8: 【工单来源id】 | H8: 工单计划id或者报修id，"order_from_id":"***"
B9: 【工单id】 | H9: order_id:"***"
B10: 【工单类型】 | H10: order_type:"***"
B11: 【工单名称】 | H11: wo_name:"***"
B12: 【工单编号】 | H12: 项目ID-工作类型ID-年月日-001
B13: 【时间类型】 | H13: temp-临时、plan-计划，"execute_type":"***"
B14: 【工作类型】 | H14: 分为维修、巡检、维保、运行这四种类型
B15: 【工单状态】 | H15: 分为按时完成、延期完成、异常结束、审核中、执行中、未开始、删除、抢单中、指派中
B16: 【工作事项】 | H16: 工单的各个工作事项的名称拼接后的字段
B17: 【工单概述】 | H17: summary:"***"，保存工单时将事项名称连接起来的字符串，用"、"隔开
B18: 【工单专业】 | H18: 创建工单时，选择的工单专业
B19: 【工单相关对象大类id】 | H19: obj_class_ids:["***","***"]
B20: 【工单相关对象id】 | H20: obj_ids:["***","***"]
H21: 【创建时间,yyyyMMddhhmmss】
H22: 【要求开始时间,yyyyMMddhhmmss】
H23: 【要求结束时间,yyyyMMddhhmmss】
H24: 【实际接单时间】
H25: 【实际完成时间,yyyyMMddhhmmss】
H26: 【关闭时间,yyyyMMddhhmmss】
H27: 【专业】
H28: 【创建人id】
H29: 【参与人】
H30: 【执行人】

Sheet 时序
A1: 表 | B1: 信息点 | C1: 信息点编码 | D1: 单位 | E1: 类型 | F1: 优先级 | G1: 输入方式 | H1: 字典 | I1: 分级标签 | K1: 备注
A2: TDTF变压器
B3: 高压侧A相电压 | C3: HUAPhaseU | D3: kV | E3: Inst | F3: S | G3: L | I3: 运行参数 | J3: 瞬时状态
B4: 高压侧B相电压 | C4: HUBPhaseU | D4: kV | E4: Inst | F4: S | G4: L
B5: 高压侧C相电压 | C5: HUCPhaseU | D5: kV | E5: Inst | F5: S | G5: L
B6: 高压侧电压 | C6: HUU | D6: kV | E6: Inst | F6: S | G6: L
B7: 高压侧A相电流 | C7: HUAPhaseI | D7: A | E7: Inst | F7: M | G7: L
B8: 高压侧B相电流 | C8: HUBPhaseI | D8: A | E8: Inst | F8: M | G8: L
B9: 高压侧C相电流 | C9: HUCPhaseI | D9: A | E9: Inst | F9: M | G9: L
B10: 高压侧电流 | C10: HUI | D10: A | E10: Inst | F10: M | G10: L
B11: 低压侧A相电压 | C11: LUAPhaseU | D11: V | E11: Inst | F11: S | G11: L
B12: 低压侧B相电压 | C12: LUBPhaseU | D12: V | E12: Inst | F12: S | G12: L
B13: 低压侧C相电压 | C13: LUCPhaseU | D13: V | E13: Inst | F13: S | G13: L
B14: 低压侧电压 | C14: LUU | D14: V | E14: Inst | F14: S | G14: L
B15: 低压侧A相电流 | C15: LUAPhaseI | D15: A | E15: Inst | F15: M | G15: L
B16: 低压侧B相电流 | C16: LUBPhaseI | D16: A | E16: Inst | F16: M | G16: L
B17: 低压侧C相电流 | C17: LUCPhaseI | D17: A | E17: Inst | F17: M | G17: L
B18: 低压侧电流 | C18: LUI | D18: A | E18: Inst | F18: M | G18: L
B19: 低压侧A相有功功率 | C19: LUAPhaseActiveP | D19: kW | E19: Inst | F19: M | G19: L
B20: 低压侧B相有功功率 | C20: LUBPhaseActiveP | D20: kW | E20: Inst | F20: M | G20: L
B21: 低压侧C相有功功率 | C21: LUCPhaseActiveP | D21: kW | E21: Inst | F21: M | G21: L
B22: 低压侧总有功功率 | C22: LUTotActiveP | D22: kW | E22: Inst | F22: S | G22: L
B23: 低压侧A相无功功率 | C23: LUAPhaseReactiveP | D23: kVar | E23: Inst | F23: R | G23: L
B24: 低压侧B相无功功率 | C24: LUBPhaseReactiveP | D24: kVar | E24: Inst | F24: R | G24: L
B25: 低压侧C相无功功率 | C25: LUCPhaseReactiveP | D25: kVar | E25: Inst | F25: R | G25: L
B26: 低压侧总无功功率 | C26: LUTotReactiveP | D26: kVar | E26: Inst | F26: M | G26: L
B27: 低压侧A相视在功率 | C27: LUAPhaseApparentP | D27: kVA | E27: Inst | F27: M | G27: L
B28: 低压侧B相视在功率 | C28: LUBPhaseApparentP | D28: kVA | E28: Inst | F28: M | G28: L
B29: 低压侧C相视在功率 | C29: LUCPhaseApparentP | D29: kVA | E29: Inst | F29: M | G29: L
B30: 低压侧总视在功率 | C30: LUTotApparentP | D30: kVA | E30: Inst | F30: S | G30: L
B31: 低压侧A相功率因数 | C31: LUAPhasePFactor | E31: Inst | F31: M | G31: L
B32: 低压侧B相功率因数 | C32: LUBPhasePFactor | E32: Inst | F32: M | G32: L
B33: 低压侧C相功率因数 | C33: LUCPhasePFactor | E33: Inst | F33: M | G33: L
B34: 低压侧总功率因数 | C34: LUTotPFactor | E34: Inst | F34: S | G34: L
B35: A相线圈温度 | C35: APhaseCoilTemp | D35: ℃ | E35: Inst | F35: M | G35: L
B36: B相线圈温度 | C36: BPhaseCoilTemp | D36: ℃ | E36: Inst | F36: M | G36: L
B37: C相线圈温度 | C37: CPhaseCoilTemp | D37: ℃ | E37: Inst | F37: M | G37: L
B38: 配套风机启停状态 | C38: FanStatus | E38: Boolv | F38: M | G38: L | H38: 0. 关闭 1. 运行
B39: 变压器噪声 | C39: TransNoise | D39: dB(A) | E39: Inst | F39: R | G39: L
B40: 通讯状态 | C40: CommunicationStatus | E40: Enumv | F40: M | G40: L | H40: 1. 正常 2. 故障 3. 断线 99. 其他
B41: 高压侧负载功率 | C41: HUP | D41: kW | E41: Inst | F41: R | G41: L
B42: 低压侧负载功率 | C42: LUP | D42: kW | E42: Inst | F42: R | G42: L
B43: 变压效率 | C43: TransEff | D43: % | E43: Inst | F43: R | G43: M | J43: 关键指标
B44: 变压损耗 | C44: TransLoss | D44: kW | E44: Inst | F44: R | G44: M
B45: 高压侧负载率 | C45: HULoadRate | D45: % | E45: Inst | F45: R | G45: M
B46: 低压侧负载率 | C46: LULoadRate | D46: % | E46: Inst | F46: R | G46: M
B47: 累计运行时间 | C47: AccRunTime | D47: h | E47: Acc | F47: S | G47: M | J47: 累计指标
B48: 开启时间计时 | C48: OpenTimeCount | D48: h | E48: Acc | F48: R | G48: M
B49: 关闭时间计时 | C49: CloseTimeCount | D49: h | E49: Acc | F49: R | G49: M
I50: 设定参数
B51: 超温预警 | C51: OverTempPreAlarm | E51: Boolp | F51: S | G51: L | H51: 0. 正常 1. 报警 | I51: 报警消息
B52: 超高温报警 | C52: OverTempAlarm | E52: Boolp | F52: S | G52: L | H52: 0. 正常 1. 报警
B53: 风机故障 | C53: FanErrorAlarm | E53: Boolp | F53: S | G53: L | H53: 0. 正常 1. 报警
A56: 时间序列 | B56: 时间戳 | L56: 各类时间序列的各信息点值
B57: 时间频率
B58: 开始时刻
B59: 结束时刻

Sheet 知识库-工作历-类
A1: 字典ID | B1: 字典名称 | C1: 字典代码 | D1: 名称 | E1: 字典类型 | F1: 父类字典名称 | G1: 父类字典代码 | H1: 父类名称 | I1: 备注
B2: 自然时间 | D2: 时间戳 | E2: 1
D3: 秒 | E3: 1
D4: 分钟 | E4: 1
D5: 小时 | E5: 1
D6: 天 | E6: 1
D7: 月 | E7: 1
D8: 季 | E8: 1
D9: 年 | E9: 1
B10: 节假日类别 | C10: NY | D10: 新年 | E10: 1
D11: 春节 | E11: 1
D12: 清明节 | E12: 1
D13: 国际劳动妇女节 | E13: 1
D14: 植树节 | E14: 1
D15: 国际劳动节 | E15: 1
B17: 时间频率 | D17: 五秒 | E17: 1
D18: 十五秒 | E18: 1
D19: 一分钟 | E19: 1
D20: 五分钟 | E20: 1
D21: 十分钟 | E21: 1
D22: 十五分钟 | E22: 1
D23: 一小时 | E23: 1
D24: 一天 | E24: 1
B25: 天气气候 | C25: tq-xy | D25: 小雨 | E25: 1
D26: 中雨 | E26: 1
D27: 大雨 | E27: 1
D28: 暴雨 | E28: 1
D29: 雷阵雨 | E29: 1
D30: 多云 | E30: 1
D31: 阴 | E31: 1
D32: 晴 | E32: 1
B33: 风向 | C33: fx-df | D33: 东风 | E33: 1
D34: 西风 | E34: 1
D35: 南风 | E35: 1
D36: 北风 | E36: 1
D37: 东北风 | E37: 1
D38: 东南风 | E38: 1
D39: 西北风 | E39: 1
D40: 西南风 | E40: 1
B41: 空调季 | E41: 1
E42: 1
E43: 1
E44: 1
E45: 1
E46: 1
E47: 1
E48: 1
E49: 1

Sheet 知识库-工作历-值
A1: 名称 | B1: 代码 | C1: 节日 | D1: 节日天数 | E1: 休假天数 | F1: 调休上班日期 | G1: 天气 | H1: 风向
A2: 2020-01-01 | B2: 20200101 | C2: NY | D2: 1 | E2: 1 | G2: tq-xy | H2: fx-df
A3: 2020-01-19 | B3: 20200119 | C3: 春节 | D3: 10 | F3: 上班
A4: 2020-01-24 | B4: 20200124 | C4: 春节 | D4: 10 | E4: 1
A5: 2020-01-25 | B5: 20200125 | C5: 春节 | D5: 10 | E5: 2
A6: 2020-01-26 | B6: 20200126 | C6: 春节 | D6: 10 | E6: 3
A7: 2020-01-27 | B7: 20200127 | C7: 春节 | D7: 10 | E7: 4
A8: 2020-01-28 | B8: 20200128 | C8: 春节 | D8: 10 | E8: 5
A9: 2020-01-29 | B9: 20200129 | C9: 春节 | D9: 10 | E9: 6
A10: 2020-01-30 | B10: 20200130 | C10: 春节 | D10: 10 | E10: 7
A11: 2020-01-31 | B11: 20200131 | C11: 春节 | D11: 10 | E11: 8
A12: 2020-02-01 | B12: 20200201 | C12: 春节 | D12: 10 | E12: 9
A13: 2020-02-02 | B13: 20200202 | C13: 春节 | D13: 10 | E13: 10
C14: 清明节 | D14: 3 | E14: 1
C15: 清明节 | D15: 3 | E15: 2
C16: 清明节 | D16: 3 | E16: 3
C17: 国际劳动妇女节 | D17: 0.5 | E17: 1
A18: 2020-03-12 | B18: 20200312 | C18: 植树节 | D18: 0 | E18: 0
A19: 2020-05-01 | B19: 20200501 | C19: 国际劳动节 | D19: 3 | E19: 1
A20: 2020-05-01 | B20: 20200501 | C20: 国际劳动节 | D20: 3 | E20: 2
A21: 2020-05-01 | B21: 20200501 | C21: 国际劳动节 | D21: 3 | E21: 3

Sheet 多维数据
A1: 表 | B1: 信息点 | C1: 信息点编码 | D1: 单位 | E1: 类型 | F1: 优先级 | G1: 输入方式 | H1: 字典 | I1: 分级标签 | K1: 备注
A2: 报警处理情况 | B2: 年
B3: 季度
B4: 月
B5: 日
B6: 地区
B7: 项目
B8: 报警级别
B9: 子系统
B10: 报警次数
B11: 报警平均处理时长
B12: 报警处理最大时长
A14: 天气 | B14: 地点
B15: 日期
B16: 时刻
B17: 最低气温
B18: 最高气温
B19: 气候
B20: 风向
B21: 风力
B22: 空气质量
B23: 湿度
B24: 降水量
